Workbook

Sheet Schedule
D1: Cowboy Donuts Work Schedule | S1: 0.04166666667
D3: ="Year: "&year -> Year: 2014 | J3: Week: | L3: =week -> 4 | Q3: [42]
D5: Month: | F5: =monthName -> July
P6: Week
A7: 2-Week Work Schedule
A8: =TEXT(INDEX(Formulas!B$21:B$26,week),"Mmmm d, yyyy")&" - " -> July 20, 2014 -
A9: =TEXT(INDEX(Formulas!H$21:H$27,week+1),"Mmmm d, yyyy") -> August 2, 2014
A12: [42] | Q12: Weekly totals
D13: =Formulas!C$19&" - "&DAY(INDEX(Formulas!C$21:C$26,week)) -> Mon - 21 | F13: =Formulas!D$19&" - "&DAY(INDEX(Formulas!D$21:D$26,week)) -> Tue - 22 | H13: =Formulas!E$19&" - "&DAY(INDEX(Formulas!E$21:E$26,week)) -> Wed - 23 | J13: =Formulas!F$19&" - "&DAY(INDEX(Formulas!F$21:F$26,week)) -> Thu - 24 | L13: =Formulas!G$19&" - "&DAY(INDEX(Formulas!G$21:G$26,week)) -> Fri - 25 | N13: =Formulas!H$19&" - "&DAY(INDEX(Formulas!H$21:H$26,week)) -> Sat - 26 | R13: Employee Notes | S13: Monday | T13: Tuesday | U13: Wednesday | V13: Thursday | W13: Friday | X13: Saturday
A14: Manager | D14: Jay | F14: Jay | H14: Jay | J14: Jay | L14: Jay | N14: Jay | P14: =N14 -> Jay | Q14: =SUM(S15:X15) -> 0
S15: =IFERROR((E15-D15)/$S$1,"") -> 0 | T15: =IFERROR((G15-F15)/$S$1,"") -> 0 | U15: =IFERROR((I15-H15)/$S$1,"") -> 0 | V15: =IFERROR((K15-J15)/$S$1,"") -> 0 | W15: =IFERROR((M15-L15)/$S$1,"") -> 0 | X15: =IFERROR((O15-N15)/$S$1,"") -> 0
A16: Supervisor | D16: Penny | F16: Penny | H16: Penny | J16: Penny | L16: Penny | N16: Penny | P16: =N16 -> Penny | Q16: =SUM(S17:X17) -> 0 | S16: =IFERROR((E16-D16),"") ->  | T16: =IFERROR((G16-F16),"") ->  | U16: =IFERROR((I16-H16),"") ->  | V16: =IFERROR((K16-J16),"") ->  | W16: =IFERROR((M16-L16),"") ->  | X16: =IFERROR((O16-N16),"") -> 
S17: =IFERROR((E17-D17)/$S$1,"") -> 0 | T17: =IFERROR((G17-F17)/$S$1,"") -> 0 | U17: =IFERROR((I17-H17)/$S$1,"") -> 0 | V17: =IFERROR((K17-J17)/$S$1,"") -> 0 | W17: =IFERROR((M17-L17)/$S$1,"") -> 0 | X17: =IFERROR((O17-N17)/$S$1,"") -> 0
A18: Baker | D18: Nissa | F18: Nissa | H18: Nissa | J18: Nissa | L18: Nissa | N18: Nissa | P18: =N18 -> Nissa | Q18: =SUM(S19:X19) -> 27 | S18: =IFERROR((E18-D18),"") ->  | T18: =IFERROR((G18-F18),"") ->  | U18: =IFERROR((I18-H18),"") ->  | V18: =IFERROR((K18-J18),"") ->  | W18: =IFERROR((M18-L18),"") ->  | X18: =IFERROR((O18-N18),"") -> 
D19: OFF | E19: OFF | F19: 02:00:00 | G19: 07:00:00 | H19: 02:00:00 | I19: 07:30:00 | J19: 02:00:00 | K19: 07:30:00 | L19: 02:00:00 | M19: 07:30:00 | N19: 02:00:00 | O19: 07:30:00 | S19: =IFERROR((E19-D19)/$S$1,"") ->  | T19: =IFERROR((G19-F19)/$S$1,"") -> 5 | U19: =IFERROR((I19-H19)/$S$1,"") -> 5.5 | V19: =IFERROR((K19-J19)/$S$1,"") -> 5.5 | W19: =IFERROR((M19-L19)/$S$1,"") -> 5.5 | X19: =IFERROR((O19-N19)/$S$1,"") -> 5.5
A20: Baker's Asst. | D20: Tracie | F20: Tracie | H20: Tracie | J20: Tracie | L20: Tracie | N20: Tracie | P20: =N20 -> Tracie | Q20: =SUM(S21:X21) -> 32.5
D21: 06:00:00 | E21: 13:00:00 | F21: 06:00:00 | G21: 14:00:00 | H21: 06:00:00 | I21: 14:00:00 | J21: 06:00:00 | K21: 10:45:00 | L21: 06:00:00 | M21: 10:45:00 | N21: OFF | O21: OFF | S21: =IFERROR((E21-D21)/$S$1,"") -> 7 | T21: =IFERROR((G21-F21)/$S$1,"") -> 8 | U21: =IFERROR((I21-H21)/$S$1,"") -> 8 | V21: =IFERROR((K21-J21)/$S$1,"") -> 4.75 | W21: =IFERROR((M21-L21)/$S$1,"") -> 4.75 | X21: =IFERROR((O21-N21)/$S$1,"") -> 
A22: Fryer | D22: Kristi | F22: Kristi | H22: Kristi | J22: Kristi | L22: Kristi | N22: Kristi | P22: =N22 -> Kristi | Q22: =SUM(S23:X23) -> 36
D23: 02:00:00 | E23: 08:00:00 | F23: 02:00:00 | G23: 08:00:00 | H23: 02:00:00 | I23: 08:00:00 | J23: 02:00:00 | K23: 08:00:00 | L23: 02:00:00 | M23: 08:00:00 | N23: 02:00:00 | O23: 08:00:00 | S23: =IFERROR((E23-D23)/$S$1,"") -> 6 | T23: =IFERROR((G23-F23)/$S$1,"") -> 6 | U23: =IFERROR((I23-H23)/$S$1,"") -> 6 | V23: =IFERROR((K23-J23)/$S$1,"") -> 6 | W23: =IFERROR((M23-L23)/$S$1,"") -> 6 | X23: =IFERROR((O23-N23)/$S$1,"") -> 6
A24: Icer | D24: Will | F24: Will | H24: Will | J24: Will | L24: Will | N24: Will | P24: =N24 -> Will | Q24: =SUM(S25:X25) -> 23.25
D25: 02:45:00 | E25: 07:00:00 | F25: OFF | G25: OFF | H25: 02:45:00 | I25: 07:30:00 | J25: 02:45:00 | K25: 07:30:00 | L25: 02:45:00 | M25: 07:30:00 | N25: 02:45:00 | O25: 07:30:00 | S25: =IFERROR((E25-D25)/$S$1,"") -> 4.25 | T25: =IFERROR((G25-F25)/$S$1,"") ->  | U25: =IFERROR((I25-H25)/$S$1,"") -> 4.75 | V25: =IFERROR((K25-J25)/$S$1,"") -> 4.75 | W25: =IFERROR((M25-L25)/$S$1,"") -> 4.75 | X25: =IFERROR((O25-N25)/$S$1,"") -> 4.75
A26: Cashier | D26: Tiffany | F26: Tiffany | H26: Tiffany | J26: Tiffany | L26: Tiffany | N26: Tiffany | P26: =N26 -> Tiffany | Q26: =SUM(S27:X27) -> 28
D27: 04:00:00 | E27: 10:00:00 | F27: 06:00:00 | G27: 10:00:00 | H27: 06:00:00 | I27: 10:00:00 | J27: 06:00:00 | K27: 10:00:00 | L27: 06:00:00 | M27: 10:00:00 | N27: 04:00:00 | O27: 10:00:00 | S27: =IFERROR((E27-D27)/$S$1,"") -> 6 | T27: =IFERROR((G27-F27)/$S$1,"") -> 4 | U27: =IFERROR((I27-H27)/$S$1,"") -> 4 | V27: =IFERROR((K27-J27)/$S$1,"") -> 4 | W27: =IFERROR((M27-L27)/$S$1,"") -> 4 | X27: =IFERROR((O27-N27)/$S$1,"") -> 6
A28: Cashier | D28: Emily | F28: Emily | H28: Emily | J28: Emily | L28: Emily | N28: Emily | P28: =N28 -> Emily | Q28: =SUM(S29:X29) -> 24
D29: 04:00:00 | E29: 08:00:00 | F29: 04:00:00 | G29: 08:00:00 | H29: 04:00:00 | I29: 08:00:00 | J29: 04:00:00 | K29: 08:00:00 | L29: 04:00:00 | M29: 08:00:00 | N29: 04:00:00 | O29: 08:00:00 | S29: =IFERROR((E29-D29)/$S$1,"") -> 4 | T29: =IFERROR((G29-F29)/$S$1,"") -> 4 | U29: =IFERROR((I29-H29)/$S$1,"") -> 4 | V29: =IFERROR((K29-J29)/$S$1,"") -> 4 | W29: =IFERROR((M29-L29)/$S$1,"") -> 4 | X29: =IFERROR((O29-N29)/$S$1,"") -> 4
A30: Cashier | D30: Danielle | F30: Danielle | H30: Danielle | J30: Danielle | L30: Danielle | N30: Danielle | P30: =N30 -> Danielle | Q30: =SUM(S31:X31) -> 36
D31: 08:00:00 | E31: 14:00:00 | F31: 08:00:00 | G31: 14:00:00 | H31: 08:00:00 | I31: 14:00:00 | J31: 08:00:00 | K31: 14:00:00 | L31: 08:00:00 | M31: 14:00:00 | N31: 08:00:00 | O31: 14:00:00 | S31: =IFERROR((E31-D31)/$S$1,"") -> 6 | T31: =IFERROR((G31-F31)/$S$1,"") -> 6 | U31: =IFERROR((I31-H31)/$S$1,"") -> 6 | V31: =IFERROR((K31-J31)/$S$1,"") -> 6 | W31: =IFERROR((M31-L31)/$S$1,"") -> 6 | X31: =IFERROR((O31-N31)/$S$1,"") -> 6
A32: Cashier | D32: Haley | F32: Haley | H32: Haley | J32: Haley | L32: Haley | N32: Haley | P32: =N32 -> Haley | Q32: =SUM(S33:X33) -> 36
D33: 08:00:00 | E33: 14:00:00 | F33: 08:00:00 | G33: 14:00:00 | H33: 08:00:00 | I33: 14:00:00 | J33: 08:00:00 | K33: 14:00:00 | L33: 08:00:00 | M33: 14:00:00 | N33: 08:00:00 | O33: 14:00:00 | S33: =IFERROR((E33-D33)/$S$1,"") -> 6 | T33: =IFERROR((G33-F33)/$S$1,"") -> 6 | U33: =IFERROR((I33-H33)/$S$1,"") -> 6 | V33: =IFERROR((K33-J33)/$S$1,"") -> 6 | W33: =IFERROR((M33-L33)/$S$1,"") -> 6 | X33: =IFERROR((O33-N33)/$S$1,"") -> 6
A34: Assistant | D34: Pauline | F34: Pauline | H34: Pauline | J34: Pauline | L34: Pauline | N34: Pauline | P34: =N34 -> Pauline | Q34: =SUM(S35:X35) -> 36
D35: 08:00:00 | E35: 14:00:00 | F35: 08:00:00 | G35: 14:00:00 | H35: 08:00:00 | I35: 14:00:00 | J35: 08:00:00 | K35: 14:00:00 | L35: 08:00:00 | M35: 14:00:00 | N35: 08:00:00 | O35: 14:00:00 | S35: =IFERROR((E35-D35)/$S$1,"") -> 6 | T35: =IFERROR((G35-F35)/$S$1,"") -> 6 | U35: =IFERROR((I35-H35)/$S$1,"") -> 6 | V35: =IFERROR((K35-J35)/$S$1,"") -> 6 | W35: =IFERROR((M35-L35)/$S$1,"") -> 6 | X35: =IFERROR((O35-N35)/$S$1,"") -> 6
A36: [42] | C36: =IF(MONTH(INDEX(Formulas!B$21:B$26,week+1))<>month,IF(DAY(INDEX(Formulas!B$21:B$26,week+1))=1,NextMonthName,""),"") ->  | D36: =IF(MONTH(INDEX(Formulas!C$21:C$26,week+1))<>month,IF(DAY(INDEX(Formulas!C$21:C$26,week+1))=1,NextMonthName,""),"") ->  | F36: =IF(MONTH(INDEX(Formulas!E$21:E$26,week+1))<>month,IF(DAY(INDEX(Formulas!E$21:E$26,week+1))=1,NextMonthName,""),"") ->  | H36: =IF(MONTH(INDEX(Formulas!G$21:G$26,week+1))<>month,IF(DAY(INDEX(Formulas!G$21:G$26,week+1))=1,NextMonthName,""),"") -> August | J36: =IF(MONTH(INDEX(Formulas!I$21:I$26,week+1))<>month,IF(DAY(INDEX(Formulas!I$21:I$26,week+1))=1,NextMonthName,""),"") ->  | R36: Notes Week 2
D37: =Formulas!C$19&" - "&DAY(INDEX(Formulas!C$21:C$27,week+1)) -> Mon - 28 | F37: =Formulas!D$19&" - "&DAY(INDEX(Formulas!D$21:D$27,week+1)) -> Tue - 29 | H37: =Formulas!E$19&" - "&DAY(INDEX(Formulas!E$21:E$27,week+1)) -> Wed - 30 | J37: =Formulas!F$19&" - "&DAY(INDEX(Formulas!F$21:F$27,week+1)) -> Thu - 31 | L37: =Formulas!G$19&" - "&DAY(INDEX(Formulas!G$21:G$27,week+1)) -> Fri - 1 | N37: =Formulas!H$19&" - "&DAY(INDEX(Formulas!H$21:H$27,week+1)) -> Sat - 2
A38: Manager | D38: Jay | F38: Jay | H38: Jay | J38: Jay | L38: Jay | N38: Jay | P38: =N38 -> Jay | Q38: =SUM(S39:X39) -> 0
S39: =IFERROR((E39-D39)/$S$1,"") -> 0 | T39: =IFERROR((G39-F39)/$S$1,"") -> 0 | U39: =IFERROR((I39-H39)/$S$1,"") -> 0 | V39: =IFERROR((K39-J39)/$S$1,"") -> 0 | W39: =IFERROR((M39-L39)/$S$1,"") -> 0 | X39: =IFERROR((O39-N39)/$S$1,"") -> 0
A40: Supervisor | D40: Penny | F40: Penny | H40: Penny | J40: Penny | L40: Penny | N40: Penny | P40: =N40 -> Penny | Q40: =SUM(S41:X41) -> 0
S41: =IFERROR((E41-D41)/$S$1,"") -> 0 | T41: =IFERROR((G41-F41)/$S$1,"") -> 0 | U41: =IFERROR((I41-H41)/$S$1,"") -> 0 | V41: =IFERROR((K41-J41)/$S$1,"") -> 0 | W41: =IFERROR((M41-L41)/$S$1,"") -> 0 | X41: =IFERROR((O41-N41)/$S$1,"") -> 0
A42: Baker | D42: Nissa | F42: Nissa | H42: Nissa | J42: Nissa | L42: Nissa | N42: Nissa | P42: =N42 -> Nissa | Q42: =SUM(S43:X43) -> 34.5
D43: 02:00:00 | E43: 07:30:00 | F43: 02:00:00 | G43: 07:30:00 | H43: 02:00:00 | I43: 07:30:00 | J43: 02:00:00 | K43: 07:30:00 | L43: 02:00:00 | M43: 07:30:00 | N43: 02:00:00 | O43: 09:00:00 | S43: =IFERROR((E43-D43)/$S$1,"") -> 5.5 | T43: =IFERROR((G43-F43)/$S$1,"") -> 5.5 | U43: =IFERROR((I43-H43)/$S$1,"") -> 5.5 | V43: =IFERROR((K43-J43)/$S$1,"") -> 5.5 | W43: =IFERROR((M43-L43)/$S$1,"") -> 5.5 | X43: =IFERROR((O43-N43)/$S$1,"") -> 7
A44: Baker's Asst. | D44: Tracie | F44: Tracie | H44: Tracie | J44: Tracie | L44: Tracie | N44: Tracie | P44: =N44 -> Tracie | Q44: =SUM(S45:X45) -> 33.5 | Y44: (Should be =< 350)
D45: 06:00:00 | E45: 14:00:00 | F45: 06:00:00 | G45: 14:00:00 | H45: 06:00:00 | I45: 14:00:00 | J45: 06:00:00 | K45: 10:45:00 | L45: 06:00:00 | M45: 10:45:00 | N45: OFF | O45: OFF | S45: =IFERROR((E45-D45)/$S$1,"") -> 8 | T45: =IFERROR((G45-F45)/$S$1,"") -> 8 | U45: =IFERROR((I45-H45)/$S$1,"") -> 8 | V45: =IFERROR((K45-J45)/$S$1,"") -> 4.75 | W45: =IFERROR((M45-L45)/$S$1,"") -> 4.75 | X45: =IFERROR((O45-N45)/$S$1,"") -> 
A46: Fryer | D46: Kristi | F46: Kristi | H46: Kristi | J46: Kristi | L46: Kristi | N46: Kristi | P46: =N46 -> Kristi | Q46: =SUM(S47:X47) -> 36
D47: 02:00:00 | E47: 08:00:00 | F47: 02:00:00 | G47: 08:00:00 | H47: 02:00:00 | I47: 08:00:00 | J47: 02:00:00 | K47: 08:00:00 | L47: 02:00:00 | M47: 08:00:00 | N47: 02:00:00 | O47: 08:00:00 | S47: =IFERROR((E47-D47)/$S$1,"") -> 6 | T47: =IFERROR((G47-F47)/$S$1,"") -> 6 | U47: =IFERROR((I47-H47)/$S$1,"") -> 6 | V47: =IFERROR((K47-J47)/$S$1,"") -> 6 | W47: =IFERROR((M47-L47)/$S$1,"") -> 6 | X47: =IFERROR((O47-N47)/$S$1,"") -> 6
A48: Icer | D48: Will | F48: Will | H48: Will | J48: Will | L48: Will | N48: Will | P48: =N48 -> Will | Q48: =SUM(S49:X49) -> 28.5
D49: 02:45:00 | E49: 07:30:00 | F49: 02:45:00 | G49: 07:30:00 | H49: 02:45:00 | I49: 07:30:00 | J49: 02:45:00 | K49: 07:30:00 | L49: 02:45:00 | M49: 07:30:00 | N49: 02:45:00 | O49: 07:30:00 | S49: =IFERROR((E49-D49)/$S$1,"") -> 4.75 | T49: =IFERROR((G49-F49)/$S$1,"") -> 4.75 | U49: =IFERROR((I49-H49)/$S$1,"") -> 4.75 | V49: =IFERROR((K49-J49)/$S$1,"") -> 4.75 | W49: =IFERROR((M49-L49)/$S$1,"") -> 4.75 | X49: =IFERROR((O49-N49)/$S$1,"") -> 4.75
A50: Cashier | D50: Tiffany | F50: Tiffany | H50: Tiffany | J50: Tiffany | L50: Tiffany | N50: Tiffany | P50: =N50 -> Tiffany | Q50: =SUM(S51:X51) -> 28
D51: 04:00:00 | E51: 10:00:00 | F51: 06:00:00 | G51: 10:00:00 | H51: 06:00:00 | I51: 10:00:00 | J51: 06:00:00 | K51: 10:00:00 | L51: 06:00:00 | M51: 10:00:00 | N51: 04:00:00 | O51: 10:00:00 | S51: =IFERROR((E51-D51)/$S$1,"") -> 6 | T51: =IFERROR((G51-F51)/$S$1,"") -> 4 | U51: =IFERROR((I51-H51)/$S$1,"") -> 4 | V51: =IFERROR((K51-J51)/$S$1,"") -> 4 | W51: =IFERROR((M51-L51)/$S$1,"") -> 4 | X51: =IFERROR((O51-N51)/$S$1,"") -> 6
A52: Cashier | D52: Emily | F52: Emily | H52: Emily | J52: Emily | L52: Emily | N52: Emily | P52: =N52 -> Emily | Q52: =SUM(S53:X53) -> 24
D53: 04:00:00 | E53: 08:00:00 | F53: 04:00:00 | G53: 08:00:00 | H53: 04:00:00 | I53: 08:00:00 | J53: 04:00:00 | K53: 08:00:00 | L53: 04:00:00 | M53: 08:00:00 | N53: 04:00:00 | O53: 08:00:00 | S53: =IFERROR((E53-D53)/$S$1,"") -> 4 | T53: =IFERROR((G53-F53)/$S$1,"") -> 4 | U53: =IFERROR((I53-H53)/$S$1,"") -> 4 | V53: =IFERROR((K53-J53)/$S$1,"") -> 4 | W53: =IFERROR((M53-L53)/$S$1,"") -> 4 | X53: =IFERROR((O53-N53)/$S$1,"") -> 4
A54: Cashier | D54: Danielle | F54: Danielle | H54: Danielle | J54: Danielle | L54: Danielle | N54: Danielle | P54: =N54 -> Danielle | Q54: =SUM(S55:X55) -> 36
D55: 08:00:00 | E55: 14:00:00 | F55: 08:00:00 | G55: 14:00:00 | H55: 08:00:00 | I55: 14:00:00 | J55: 08:00:00 | K55: 14:00:00 | L55: 08:00:00 | M55: 14:00:00 | N55: 08:00:00 | O55: 14:00:00 | S55: =IFERROR((E55-D55)/$S$1,"") -> 6 | T55: =IFERROR((G55-F55)/$S$1,"") -> 6 | U55: =IFERROR((I55-H55)/$S$1,"") -> 6 | V55: =IFERROR((K55-J55)/$S$1,"") -> 6 | W55: =IFERROR((M55-L55)/$S$1,"") -> 6 | X55: =IFERROR((O55-N55)/$S$1,"") -> 6
A56: Cashier | D56: Haley | F56: Haley | H56: Haley | J56: Haley | L56: Haley | N56: Haley | P56: =N56 -> Haley | Q56: =SUM(S57:X57) -> 36
D57: 08:00:00 | E57: 14:00:00 | F57: 08:00:00 | G57: 14:00:00 | H57: 08:00:00 | I57: 14:00:00 | J57: 08:00:00 | K57: 14:00:00 | L57: 08:00:00 | M57: 14:00:00 | N57: 08:00:00 | O57: 14:00:00 | S57: =IFERROR((E57-D57)/$S$1,"") -> 6 | T57: =IFERROR((G57-F57)/$S$1,"") -> 6 | U57: =IFERROR((I57-H57)/$S$1,"") -> 6 | V57: =IFERROR((K57-J57)/$S$1,"") -> 6 | W57: =IFERROR((M57-L57)/$S$1,"") -> 6 | X57: =IFERROR((O57-N57)/$S$1,"") -> 6
A58: Assistant | D58: Pauline | F58: Pauline | H58: Pauline | J58: Pauline | L58: Pauline | N58: Pauline | P58: =N58 -> Pauline | Q58: =SUM(S59:X59) -> 36 | S58: =IFERROR((E58-D58),"") ->  | T58: =IFERROR((G58-F58),"") ->  | U58: =IFERROR((I58-H58),"") ->  | V58: =IFERROR((K58-J58),"") ->  | W58: =IFERROR((M58-L58),"") ->  | X58: =IFERROR((O58-N58),"") -> 
D59: 08:00:00 | E59: 14:00:00 | F59: 08:00:00 | G59: 14:00:00 | H59: 08:00:00 | I59: 14:00:00 | J59: 08:00:00 | K59: 14:00:00 | L59: 08:00:00 | M59: 14:00:00 | N59: 08:00:00 | O59: 14:00:00 | S59: =IFERROR((E59-D59)/$S$1,"") -> 6 | T59: =IFERROR((G59-F59)/$S$1,"") -> 6 | U59: =IFERROR((I59-H59)/$S$1,"") -> 6 | V59: =IFERROR((K59-J59)/$S$1,"") -> 6 | W59: =IFERROR((M59-L59)/$S$1,"") -> 6 | X59: =IFERROR((O59-N59)/$S$1,"") -> 6
D60: =IF(MONTH(INDEX(Formulas!C$21:C$26,week+1))<>month,IF(DAY(INDEX(Formulas!C$21:C$26,week+1))=1,NextMonthName,""),"") ->  | F60: =IF(MONTH(INDEX(Formulas!E$21:E$26,week+1))<>month,IF(DAY(INDEX(Formulas!E$21:E$26,week+1))=1,NextMonthName,""),"") ->  | H60: =IF(MONTH(INDEX(Formulas!G$21:G$26,week+1))<>month,IF(DAY(INDEX(Formulas!G$21:G$26,week+1))=1,NextMonthName,""),"") -> August | J60: =IF(MONTH(INDEX(Formulas!I$21:I$26,week+1))<>month,IF(DAY(INDEX(Formulas!I$21:I$26,week+1))=1,NextMonthName,""),"") -> 
B63: =D13 -> Mon - 21 | E63: =F13 -> Tue - 22 | H63: =H13 -> Wed - 23 | K63: =J13 -> Thu - 24 | N63: =L13 -> Fri - 25 | Q63: =N13 -> Sat - 26
B64: =$D14 -> Jay | C64: =D15 -> 0 | D64: =E15 -> 0 | E64: =F14 -> Jay | F64: =F15 -> 0 | G64: =G15 -> 0 | H64: =H14 -> Jay | I64: =H15 -> 0 | J64: =I15 -> 0 | K64: =J14 -> Jay | L64: =J15 -> 0 | M64: =K15 -> 0 | N64: =L14 -> Jay | O64: =L15 -> 0 | P64: =M15 -> 0 | Q64: =N14 -> Jay | R64: =N15 -> 0 | S64: =O15 -> 0
B65: =D16 -> Penny | C65: =D17 -> 0 | D65: =E17 -> 0 | E65: =F16 -> Penny | F65: =F17 -> 0 | G65: =G17 -> 0 | H65: =H16 -> Penny | I65: =H17 -> 0 | J65: =J17 -> 0 | K65: =J16 -> Penny | L65: =J17 -> 0 | M65: =K17 -> 0 | N65: =N16 -> Penny | O65: =L17 -> 0 | P65: =M17 -> 0 | Q65: =N16 -> Penny | R65: =N17 -> 0 | S65: =O17 -> 0
B66: =D18 -> Nissa | C66: =D19 -> OFF | D66: =E19 -> OFF | E66: =F18 -> Nissa | F66: =F19 -> 02:00:00 | G66: =G19 -> 07:00:00 | H66: =H18 -> Nissa | I66: =H19 -> 02:00:00 | J66: =I19 -> 07:30:00 | K66: =J18 -> Nissa | L66: =J19 -> 02:00:00 | M66: =K19 -> 07:30:00 | N66: =L18 -> Nissa | O66: =L19 -> 02:00:00 | P66: =M19 -> 07:30:00 | Q66: =N18 -> Nissa | R66: =N19 -> 02:00:00 | S66: =O19 -> 07:30:00
B67: =D20 -> Tracie | C67: =D21 -> 0.25 | D67: =E21 -> 0.5416666667 | E67: =F20 -> Tracie | F67: =F21 -> 06:00:00 | G67: =G21 -> 14:00:00 | H67: =H20 -> Tracie | I67: =H21 -> 06:00:00 | J67: =I21 -> 14:00:00 | K67: =J20 -> Tracie | L67: =J21 -> 06:00:00 | M67: =K21 -> 10:45:00 | N67: =L20 -> Tracie | O67: =L21 -> 06:00:00 | P67: =M21 -> 10:45:00 | Q67: =N20 -> Tracie | R67: =N21 -> OFF | S67: =O21 -> OFF
B68: =D22 -> Kristi | C68: =D23 -> 0.08333333333 | D68: =E23 -> 0.3333333333 | E68: =F22 -> Kristi | F68: =F23 -> 02:00:00 | G68: =G23 -> 08:00:00 | H68: =H22 -> Kristi | I68: =H23 -> 02:00:00 | J68: =I23 -> 08:00:00 | K68: =J22 -> Kristi | L68: =J23 -> 02:00:00 | M68: =K23 -> 08:00:00 | N68: =L22 -> Kristi | O68: =L23 -> 02:00:00 | P68: =M23 -> 08:00:00 | Q68: =N22 -> Kristi | R68: =N23 -> 02:00:00 | S68: =O23 -> 08:00:00
B69: =D24 -> Will | C69: =D25 -> 0.1145833333 | D69: =E25 -> 0.2916666667 | E69: =F24 -> Will | F69: =F25 -> OFF | G69: =G25 -> OFF | H69: =H24 -> Will | I69: =H25 -> 02:45:00 | J69: =I25 -> 07:30:00 | K69: =J24 -> Will | L69: =J25 -> 02:45:00 | M69: =K25 -> 07:30:00 | N69: =L24 -> Will | O69: =L25 -> 02:45:00 | P69: =M25 -> 07:30:00 | Q69: =N24 -> Will | R69: =N25 -> 02:45:00 | S69: =O25 -> 07:30:00
B70: =D26 -> Tiffany | C70: =D27 -> 0.1666666667 | D70: =D27 -> 0.1666666667 | E70: =F26 -> Tiffany | F70: =F27 -> 06:00:00 | G70: =G27 -> 0.4166666667 | H70: =H26 -> Tiffany | I70: =H27 -> 06:00:00 | J70: =I27 -> 10:00:00 | K70: =J26 -> Tiffany | L70: =J27 -> 06:00:00 | M70: =K27 -> 10:00:00 | N70: =L26 -> Tiffany | O70: =L27 -> 06:00:00 | P70: =M27 -> 10:00:00 | Q70: =N26 -> Tiffany | R70: =N27 -> 04:00:00 | S70: =O27 -> 10:00:00
B71: =D28 -> Emily | C71: =D29 -> 0.1666666667 | D71: =D29 -> 0.1666666667 | E71: =F28 -> Emily | F71: =F29 -> 04:00:00 | G71: =G29 -> 0.3333333333 | H71: =H28 -> Emily | I71: =H29 -> 04:00:00 | J71: =I29 -> 08:00:00 | K71: =J28 -> Emily | L71: =J29 -> 04:00:00 | M71: =K29 -> 08:00:00 | N71: =L28 -> Emily | O71: =L29 -> 04:00:00 | P71: =M29 -> 08:00:00 | Q71: =N28 -> Emily | R71: =N29 -> 04:00:00 | S71: =O29 -> 08:00:00
B72: =D30 -> Danielle | C72: =D31 -> 0.3333333333 | D72: =D31 -> 0.3333333333 | E72: =F30 -> Danielle | F72: =F31 -> 08:00:00 | G72: =G31 -> 0.5833333333 | H72: =H30 -> Danielle | I72: =H31 -> 08:00:00 | J72: =I31 -> 14:00:00 | K72: =J30 -> Danielle | L72: =J31 -> 08:00:00 | M72: =K31 -> 14:00:00 | N72: =L30 -> Danielle | O72: =L31 -> 08:00:00 | P72: =M31 -> 14:00:00 | Q72: =N30 -> Danielle | R72: =N31 -> 08:00:00 | S72: =O31 -> 14:00:00
B73: =D32 -> Haley | C73: =D33 -> 0.3333333333 | D73: =D33 -> 0.3333333333 | E73: =F32 -> Haley | F73: =F33 -> 08:00:00 | G73: =G33 -> 0.5833333333 | H73: =H32 -> Haley | I73: =H33 -> 08:00:00 | J73: =I33 -> 14:00:00 | K73: =J32 -> Haley | L73: =J33 -> 08:00:00 | M73: =K33 -> 14:00:00 | N73: =L32 -> Haley | O73: =L33 -> 08:00:00 | P73: =M33 -> 14:00:00 | Q73: =N32 -> Haley | R73: =N33 -> 08:00:00 | S73: =O33 -> 14:00:00
B74: =D34 -> Pauline | C74: =D35 -> 0.3333333333 | D74: =D35 -> 0.3333333333 | E74: =F34 -> Pauline | F74: =F35 -> 08:00:00 | G74: =G35 -> 0.5833333333 | H74: =H34 -> Pauline | I74: =H35 -> 08:00:00 | J74: =I35 -> 14:00:00 | K74: =J34 -> Pauline | L74: =J35 -> 08:00:00 | M74: =K35 -> 14:00:00 | N74: =L34 -> Pauline | O74: =L35 -> 08:00:00 | P74: =M35 -> 14:00:00 | Q74: =N34 -> Pauline | R74: =N35 -> 08:00:00 | S74: =O35 -> 14:00:00
B75: =D37 -> Mon - 28 | E75: =F37 -> Tue - 29 | H75: =H37 -> Wed - 30 | K75: =J37 -> Thu - 31 | N75: =L37 -> Fri - 1 | Q75: =N37 -> Sat - 2
B76: =D38 -> Jay | C76: =D39 -> 0 | D76: =E39 -> 0 | E76: =F38 -> Jay | F76: =F39 -> 0 | G76: =G39 -> 0 | H76: =H38 -> Jay | I76: =H39 -> 0 | J76: =I39 -> 0 | K76: =J38 -> Jay | L76: =J39 -> 0 | M76: =K39 -> 0 | N76: =L38 -> Jay | O76: =L39 -> 0 | P76: =M39 -> 0 | Q76: =N38 -> Jay | R76: =N39 -> 0 | S76: =O39 -> 0
B77: =D40 -> Penny | C77: =D41 -> 0 | D77: =E41 -> 0 | E77: =F40 -> Penny | F77: =F41 -> 0 | G77: =G41 -> 0 | H77: =H40 -> Penny | I77: =H41 -> 0 | J77: =I41 -> 0 | K77: =J40 -> Penny | L77: =J41 -> 0 | M77: =K41 -> 0 | N77: =L40 -> Penny | O77: =L41 -> 0 | P77: =M41 -> 0 | Q77: =N40 -> Penny | R77: =N41 -> 0 | S77: =O41 -> 0
B78: =D42 -> Nissa | C78: =D43 -> 0.08333333333 | D78: =E43 -> 0.3125 | E78: =F42 -> Nissa | F78: =F43 -> 02:00:00 | G78: =G43 -> 0.3125 | H78: =H42 -> Nissa | I78: =H43 -> 02:00:00 | J78: =I43 -> 07:30:00 | K78: =J42 -> Nissa | L78: =J43 -> 02:00:00 | M78: =K43 -> 07:30:00 | N78: =L42 -> Nissa | O78: =L43 -> 02:00:00 | P78: =M43 -> 07:30:00 | Q78: =N42 -> Nissa | R78: =N43 -> 02:00:00 | S78: =O43 -> 09:00:00
B79: =D44 -> Tracie | C79: =D45 -> 0.25 | D79: =E45 -> 0.5833333333 | E79: =F44 -> Tracie | F79: =F45 -> 06:00:00 | G79: =G45 -> 0.5833333333 | H79: =H44 -> Tracie | I79: =H45 -> 06:00:00 | J79: =I45 -> 14:00:00 | K79: =J44 -> Tracie | L79: =J45 -> 06:00:00 | M79: =K45 -> 10:45:00 | N79: =L44 -> Tracie | O79: =L45 -> 06:00:00 | P79: =M45 -> 10:45:00 | Q79: =N44 -> Tracie | R79: =N45 -> OFF | S79: =O45 -> OFF
B80: =D46 -> Kristi | C80: =D47 -> 0.08333333333 | D80: =E47 -> 0.3333333333 | E80: =F46 -> Kristi | F80: =F47 -> 02:00:00 | G80: =G47 -> 0.3333333333 | H80: =H46 -> Kristi | I80: =H47 -> 02:00:00 | J80: =I47 -> 08:00:00 | K80: =J46 -> Kristi | L80: =J47 -> 02:00:00 | M80: =K47 -> 08:00:00 | N80: =L46 -> Kristi | O80: =L47 -> 02:00:00 | P80: =M47 -> 08:00:00 | Q80: =N46 -> Kristi | R80: =N47 -> 02:00:00 | S80: =O47 -> 08:00:00
B81: =D48 -> Will | C81: =D49 -> 0.1145833333 | D81: =E49 -> 0.3125 | E81: =F48 -> Will | F81: =F49 -> 02:45:00 | G81: =G49 -> 0.3125 | H81: =H48 -> Will | I81: =H49 -> 02:45:00 | J81: =I49 -> 07:30:00 | K81: =J48 -> Will | L81: =J49 -> 02:45:00 | M81: =K49 -> 07:30:00 | N81: =L48 -> Will | O81: =L49 -> 02:45:00 | P81: =M49 -> 07:30:00 | Q81: =N48 -> Will | R81: =N49 -> 02:45:00 | S81: =O49 -> 07:30:00
B82: =D50 -> Tiffany | C82: =D51 -> 0.1666666667 | D82: =E51 -> 0.4166666667 | E82: =F50 -> Tiffany | F82: =F51 -> 06:00:00 | G82: =G51 -> 0.4166666667 | H82: =H50 -> Tiffany | I82: =H51 -> 06:00:00 | J82: =I51 -> 10:00:00 | K82: =J50 -> Tiffany | L82: =J51 -> 06:00:00 | M82: =K51 -> 10:00:00 | N82: =L50 -> Tiffany | O82: =L51 -> 06:00:00 | P82: =M51 -> 10:00:00 | Q82: =N50 -> Tiffany | R82: =N51 -> 04:00:00 | S82: =O51 -> 10:00:00
B83: =D52 -> Emily | C83: =D53 -> 0.1666666667 | D83: =E53 -> 0.3333333333 | E83: =F52 -> Emily | F83: =F53 -> 04:00:00 | G83: =G53 -> 0.3333333333 | H83: =H52 -> Emily | I83: =H53 -> 04:00:00 | J83: =I53 -> 08:00:00 | K83: =J52 -> Emily | L83: =J53 -> 04:00:00 | M83: =K53 -> 08:00:00 | N83: =L52 -> Emily | O83: =L53 -> 04:00:00 | P83: =M53 -> 08:00:00 | Q83: =N52 -> Emily | R83: =N53 -> 04:00:00 | S83: =O53 -> 08:00:00
B84: =D54 -> Danielle | C84: =D55 -> 0.3333333333 | D84: =E55 -> 0.5833333333 | E84: =F54 -> Danielle | F84: =F55 -> 08:00:00 | G84: =G55 -> 0.5833333333 | H84: =H54 -> Danielle | I84: =H55 -> 08:00:00 | J84: =I55 -> 14:00:00 | K84: =J54 -> Danielle | L84: =J55 -> 08:00:00 | M84: =K55 -> 14:00:00 | N84: =L54 -> Danielle | O84: =L55 -> 08:00:00 | P84: =M55 -> 14:00:00 | Q84: =N54 -> Danielle | R84: =N55 -> 08:00:00 | S84: =O55 -> 14:00:00
B85: =D56 -> Haley | C85: =D57 -> 08:00:00 | D85: =E57 -> 0.5833333333 | E85: =F56 -> Haley | F85: =F57 -> 08:00:00 | G85: =G57 -> 0.5833333333 | H85: =H56 -> Haley | I85: =H57 -> 08:00:00 | J85: =I57 -> 14:00:00 | K85: =J56 -> Haley | L85: =J57 -> 08:00:00 | M85: =K57 -> 14:00:00 | N85: =L56 -> Haley | O85: =L57 -> 08:00:00 | P85: =M57 -> 14:00:00 | Q85: =N56 -> Haley | R85: =N57 -> 08:00:00 | S85: =O57 -> 14:00:00
B86: =D58 -> Pauline | C86: =D59 -> 0.3333333333 | D86: =E59 -> 0.5833333333 | E86: =F58 -> Pauline | F86: =F59 -> 08:00:00 | G86: =G59 -> 0.5833333333 | H86: =H58 -> Pauline | I86: =H59 -> 08:00:00 | J86: =I59 -> 14:00:00 | K86: =J58 -> Pauline | L86: =J59 -> 08:00:00 | M86: =K59 -> 14:00:00 | N86: =L58 -> Pauline | O86: =L59 -> 08:00:00 | P86: =M59 -> 14:00:00 | Q86: =N58 -> Pauline | R86: =N59 -> 08:00:00 | S86: =O59 -> 14:00:00

Sheet Employee Info
A1: Employee Information | L1: 0.04166666667
L2: =L16 -> Jay | M2: start | N2: end | O2: =O16 -> Penny | P2: start | Q2: end | R2: =R16 -> Nissa | S2: start | T2: end | U2: =U16 -> Tracie | V2: start | W2: end | X2: =X16 -> Kristi | Y2: start | Z2: end | AA2: =AA16 -> Will | AB2: start | AC2: end | AD2: =AD16 -> Tiffany | AE2: start | AF2: end | AG2: =AG16 -> Emily | AH2: start | AI2: end | AJ2: =AJ16 -> Danielle | AK2: start | AL2: end | AM2: =AM16 -> Haley | AN2: start | AO2: end | AP2: =AP16 -> Pauline | AQ2: start | AR2: end
A3: Emp. # | B3: Name | C3: Position | D3: Rate/Hr. | E3: 2 Wk Hrs | F3: 2 week pay | G3: Phone # | H3: Carrier | I3: Carrier code | J3: Email | L3: =Schedule!$D$13 -> Mon - 21 | M3: =IFERROR(IF(VLOOKUP(M17,$J$16:$K$74,2,FALSE)=0,"",VLOOKUP(M17,$J$16:$K$74,2,FALSE)),"") ->  | N3: =IFERROR(IF(VLOOKUP(N17,$J$16:$K$74,2,FALSE)=0,"",VLOOKUP(N17,$J$16:$K$74,2,FALSE)),"") ->  | O3: =Schedule!$D$13 -> Mon - 21 | P3: =IFERROR(IF(VLOOKUP(P17,$J$16:$K$74,2,FALSE)=0,"",VLOOKUP(P17,$J$16:$K$74,2,FALSE)),"") ->  | Q3: =IFERROR(IF(VLOOKUP(Q17,$J$16:$K$74,2,FALSE)=0,"",VLOOKUP(Q17,$J$16:$K$74,2,FALSE)),"") ->  | R3: =Schedule!$D$13 -> Mon - 21 | S3: =IFERROR(IF(VLOOKUP(S17,$J$16:$K$74,2,FALSE)=0,"",VLOOKUP(S17,$J$16:$K$74,2,FALSE)),"") -> OFF | T3: =IFERROR(IF(VLOOKUP(T17,$J$16:$K$74,2,FALSE)=0,"",VLOOKUP(T17,$J$16:$K$74,2,FALSE)),"") -> OFF | U3: =Schedule!$D$13 -> Mon - 21 | V3: =IFERROR(IF(VLOOKUP(V17,$J$16:$K$74,2,FALSE)=0,"",VLOOKUP(V17,$J$16:$K$74,2,FALSE)),"") -> 6 a.m. | W3: =IFERROR(IF(VLOOKUP(W17,$J$16:$K$74,2,FALSE)=0,"",VLOOKUP(W17,$J$16:$K$74,2,FALSE)),"") -> 1 p.m. | X3: =Schedule!$D$13 -> Mon - 21 | Y3: =IFERROR(IF(VLOOKUP(Y17,$J$16:$K$74,2,FALSE)=0,"",VLOOKUP(Y17,$J$16:$K$74,2,FALSE)),"") -> 2 a.m. | Z3: =IFERROR(IF(VLOOKUP(Z17,$J$16:$K$74,2,FALSE)=0,"",VLOOKUP(Z17,$J$16:$K$74,2,FALSE)),"") -> 8 a.m. | AA3: =Schedule!$D$13 -> Mon - 21 | AB3: =IFERROR(IF(VLOOKUP(AB17,$J$16:$K$74,2,FALSE)=0,"",VLOOKUP(AB17,$J$16:$K$74,2,FALSE)),"") -> 2:45 a.m. | AC3: =IFERROR(IF(VLOOKUP(AC17,$J$16:$K$74,2,FALSE)=0,"",VLOOKUP(AC17,$J$16:$K$74,2,FALSE)),"") -> 7 a.m. | AD3: =Schedule!$D$13 -> Mon - 21 | AE3: =IFERROR(IF(VLOOKUP(AE17,$J$16:$K$74,2,FALSE)=0,"",VLOOKUP(AE17,$J$16:$K$74,2,FALSE)),"") -> 4 a.m. | AF3: =IFERROR(IF(VLOOKUP(AF17,$J$16:$K$74,2,FALSE)=0,"",VLOOKUP(AF17,$J$16:$K$74,2,FALSE)),"") -> 4 a.m. | AG3: =Schedule!$D$13 -> Mon - 21 | AH3: =IFERROR(IF(VLOOKUP(AH17,$J$16:$K$74,2,FALSE)=0,"",VLOOKUP(AH17,$J$16:$K$74,2,FALSE)),"") -> 4 a.m. | AI3: =IFERROR(IF(VLOOKUP(AI17,$J$16:$K$74,2,FALSE)=0,"",VLOOKUP(AI17,$J$16:$K$74,2,FALSE)),"") -> 4 a.m. | AJ3: =Schedule!$D$13 -> Mon - 21 | AK3: =IFERROR(IF(VLOOKUP(AK17,$J$16:$K$74,2,FALSE)=0,"",VLOOKUP(AK17,$J$16:$K$74,2,FALSE)),"") -> 8 a.m. | AL3: =IFERROR(IF(VLOOKUP(AL17,$J$16:$K$74,2,FALSE)=0,"",VLOOKUP(AL17,$J$16:$K$74,2,FALSE)),"") -> 8 a.m. | AM3: =Schedule!$D$13 -> Mon - 21 | AN3: =IFERROR(IF(VLOOKUP(AN17,$J$16:$K$74,2,FALSE)=0,"",VLOOKUP(AN17,$J$16:$K$74,2,FALSE)),"") -> 8 a.m. | AO3: =IFERROR(IF(VLOOKUP(AO17,$J$16:$K$74,2,FALSE)=0,"",VLOOKUP(AO17,$J$16:$K$74,2,FALSE)),"") -> 8 a.m. | AP3: =Schedule!$D$13 -> Mon - 21 | AQ3: =IFERROR(IF(VLOOKUP(AQ17,$J$16:$K$74,2,FALSE)=0,"",VLOOKUP(AQ17,$J$16:$K$74,2,FALSE)),"") -> 8 a.m. | AR3: =IFERROR(IF(VLOOKUP(AR17,$J$16:$K$74,2,FALSE)=0,"",VLOOKUP(AR17,$J$16:$K$74,2,FALSE)),"") -> 8 a.m.
A4: 1 | B4: Jay | C4: M | D4: - | E4: =(VLOOKUP('Employee Info'!B4,Schedule!$P$14:$Q$35,2,FALSE)+VLOOKUP('Employee Info'!B4,Schedule!$P$38:$Q$59,2,FALSE)) -> 0 | F4: =IFERROR(E4*D4,"") ->  | G4: 3078710570 | H4: Verizon | I4: =VLOOKUP(H4,Carriers!$A$2:$B$10,2,FALSE) -> vtext.com | J4: derekjohnson112@gmail.com | L4: =Schedule!$F$13 -> Tue - 22 | M4: =IFERROR(IF(VLOOKUP(M18,$J$16:$K$74,2,FALSE)=0,"",VLOOKUP(M18,$J$16:$K$74,2,FALSE)),"") ->  | O4: =Schedule!$F$13 -> Tue - 22 | P4: =IFERROR(IF(VLOOKUP(P18,$J$16:$K$74,2,FALSE)=0,"",VLOOKUP(P18,$J$16:$K$74,2,FALSE)),"") ->  | R4: =Schedule!$F$13 -> Tue - 22 | S4: =IFERROR(IF(VLOOKUP(S18,$J$16:$K$74,2,FALSE)=0,"",VLOOKUP(S18,$J$16:$K$74,2,FALSE)),"") -> 2 a.m. | T4: =IFERROR(IF(VLOOKUP(T18,$J$16:$K$74,2,FALSE)=0,"",VLOOKUP(T18,$J$16:$K$74,2,FALSE)),"") -> 7 a.m. | U4: =Schedule!$F$13 -> Tue - 22 | V4: =IFERROR(IF(VLOOKUP(V18,$J$16:$K$74,2,FALSE)=0,"",VLOOKUP(V18,$J$16:$K$74,2,FALSE)),"") -> 6 a.m. | W4: 2 p.m. | X4: =Schedule!$F$13 -> Tue - 22 | Y4: =IFERROR(IF(VLOOKUP(Y18,$J$16:$K$74,2,FALSE)=0,"",VLOOKUP(Y18,$J$16:$K$74,2,FALSE)),"") -> 2 a.m. | Z4: 8 a.m. | AA4: =Schedule!$F$13 -> Tue - 22 | AB4: =IFERROR(IF(VLOOKUP(AB18,$J$16:$K$74,2,FALSE)=0,"",VLOOKUP(AB18,$J$16:$K$74,2,FALSE)),"") -> OFF | AC4: OFF | AD4: =Schedule!$F$13 -> Tue - 22 | AE4: =IFERROR(IF(VLOOKUP(AE18,$J$16:$K$74,2,FALSE)=0,"",VLOOKUP(AE18,$J$16:$K$74,2,FALSE)),"") -> 6 a.m. | AF4: 10 a.m. | AG4: =Schedule!$F$13 -> Tue - 22 | AH4: =IFERROR(IF(VLOOKUP(AH18,$J$16:$K$74,2,FALSE)=0,"",VLOOKUP(AH18,$J$16:$K$74,2,FALSE)),"") -> 4 a.m. | AI4: 8 a.m. | AJ4: =Schedule!$F$13 -> Tue - 22 | AK4: =IFERROR(IF(VLOOKUP(AK18,$J$16:$K$74,2,FALSE)=0,"",VLOOKUP(AK18,$J$16:$K$74,2,FALSE)),"") -> 8 a.m. | AL4: 2 p.m. | AM4: =Schedule!$F$13 -> Tue - 22 | AN4: =IFERROR(IF(VLOOKUP(AN18,$J$16:$K$74,2,FALSE)=0,"",VLOOKUP(AN18,$J$16:$K$74,2,FALSE)),"") -> 8 a.m. | AO4: 2 p.m. | AP4: =Schedule!$F$13 -> Tue - 22 | AQ4: =IFERROR(IF(VLOOKUP(AQ18,$J$16:$K$74,2,FALSE)=0,"",VLOOKUP(AQ18,$J$16:$K$74,2,FALSE)),"") -> 8 a.m. | AR4: 2 p.m.
A5: 2 | B5: Penny | C5: M | D5: - | E5: =(VLOOKUP('Employee Info'!B5,Schedule!$P$14:$Q$35,2,FALSE)+VLOOKUP('Employee Info'!B5,Schedule!$P$38:$Q$59,2,FALSE)) -> 0 | F5: =IFERROR(E5*D5,"") ->  | G5: 3078710571 | H5: Verizon | I5: =VLOOKUP(H5,Carriers!$A$2:$B$10,2,FALSE) -> vtext.com | J5: derekjohnson113@gmail.com | L5: =Schedule!$H$13 -> Wed - 23 | M5: =IFERROR(IF(VLOOKUP(M19,$J$16:$K$74,2,FALSE)=0,"",VLOOKUP(M19,$J$16:$K$74,2,FALSE)),"") ->  | O5: =Schedule!$H$13 -> Wed - 23 | P5: =IFERROR(IF(VLOOKUP(P19,$J$16:$K$74,2,FALSE)=0,"",VLOOKUP(P19,$J$16:$K$74,2,FALSE)),"") ->  | R5: =Schedule!$H$13 -> Wed - 23 | S5: 2 a.m. | T5: 7:30 a.m. | U5: =Schedule!$H$13 -> Wed - 23 | V5: =IFERROR(IF(VLOOKUP(V19,$J$16:$K$74,2,FALSE)=0,"",VLOOKUP(V19,$J$16:$K$74,2,FALSE)),"") -> 6 a.m. | W5: 2 p.m. | X5: =Schedule!$H$13 -> Wed - 23 | Y5: =IFERROR(IF(VLOOKUP(Y19,$J$16:$K$74,2,FALSE)=0,"",VLOOKUP(Y19,$J$16:$K$74,2,FALSE)),"") -> 2 a.m. | Z5: 8 a.m. | AA5: =Schedule!$H$13 -> Wed - 23 | AB5: =IFERROR(IF(VLOOKUP(AB19,$J$16:$K$74,2,FALSE)=0,"",VLOOKUP(AB19,$J$16:$K$74,2,FALSE)),"") -> 2:45 a.m. | AC5: 7:30 a.m. | AD5: =Schedule!$H$13 -> Wed - 23 | AE5: =IFERROR(IF(VLOOKUP(AE19,$J$16:$K$74,2,FALSE)=0,"",VLOOKUP(AE19,$J$16:$K$74,2,FALSE)),"") -> 6 a.m. | AF5: 10 a.m. | AG5: =Schedule!$H$13 -> Wed - 23 | AH5: =IFERROR(IF(VLOOKUP(AH19,$J$16:$K$74,2,FALSE)=0,"",VLOOKUP(AH19,$J$16:$K$74,2,FALSE)),"") -> 4 a.m. | AI5: 8 a.m. | AJ5: =Schedule!$H$13 -> Wed - 23 | AK5: =IFERROR(IF(VLOOKUP(AK19,$J$16:$K$74,2,FALSE)=0,"",VLOOKUP(AK19,$J$16:$K$74,2,FALSE)),"") -> 8 a.m. | AL5: 2 p.m. | AM5: =Schedule!$H$13 -> Wed - 23 | AN5: =IFERROR(IF(VLOOKUP(AN19,$J$16:$K$74,2,FALSE)=0,"",VLOOKUP(AN19,$J$16:$K$74,2,FALSE)),"") -> 8 a.m. | AO5: 2 p.m. | AP5: =Schedule!$H$13 -> Wed - 23 | AQ5: =IFERROR(IF(VLOOKUP(AQ19,$J$16:$K$74,2,FALSE)=0,"",VLOOKUP(AQ19,$J$16:$K$74,2,FALSE)),"") -> 8 a.m. | AR5: 2 p.m.
A6: 3 | B6: Nissa | C6: E | D6: 10 | E6: =(VLOOKUP('Employee Info'!B6,Schedule!$P$14:$Q$35,2,FALSE)+VLOOKUP('Employee Info'!B6,Schedule!$P$38:$Q$59,2,FALSE)) -> 61.5 | F6: 615 | G6: 3078710572 | H6: Verizon | I6: =VLOOKUP(H6,Carriers!$A$2:$B$10,2,FALSE) -> vtext.com | J6: derekjohnson112@gmail.com | L6: =Schedule!$J$13 -> Thu - 24 | M6: =IFERROR(IF(VLOOKUP(M20,$J$16:$K$74,2,FALSE)=0,"",VLOOKUP(M20,$J$16:$K$74,2,FALSE)),"") ->  | O6: =Schedule!$J$13 -> Thu - 24 | P6: =IFERROR(IF(VLOOKUP(P20,$J$16:$K$74,2,FALSE)=0,"",VLOOKUP(P20,$J$16:$K$74,2,FALSE)),"") ->  | R6: =Schedule!$J$13 -> Thu - 24 | S6: =IFERROR(IF(VLOOKUP(S20,$J$16:$K$74,2,FALSE)=0,"",VLOOKUP(S20,$J$16:$K$74,2,FALSE)),"") -> 2 a.m. | T6: 7:30 a.m. | U6: =Schedule!$J$13 -> Thu - 24 | V6: =IFERROR(IF(VLOOKUP(V20,$J$16:$K$74,2,FALSE)=0,"",VLOOKUP(V20,$J$16:$K$74,2,FALSE)),"") -> 6 a.m. | W6: 10:45 a.m. | X6: =Schedule!$J$13 -> Thu - 24 | Y6: =IFERROR(IF(VLOOKUP(Y20,$J$16:$K$74,2,FALSE)=0,"",VLOOKUP(Y20,$J$16:$K$74,2,FALSE)),"") -> 2 a.m. | Z6: 8 a.m. | AA6: =Schedule!$J$13 -> Thu - 24 | AB6: =IFERROR(IF(VLOOKUP(AB20,$J$16:$K$74,2,FALSE)=0,"",VLOOKUP(AB20,$J$16:$K$74,2,FALSE)),"") -> 2:45 a.m. | AC6: 7:30 a.m. | AD6: =Schedule!$J$13 -> Thu - 24 | AE6: =IFERROR(IF(VLOOKUP(AE20,$J$16:$K$74,2,FALSE)=0,"",VLOOKUP(AE20,$J$16:$K$74,2,FALSE)),"") -> 6 a.m. | AF6: 10 a.m. | AG6: =Schedule!$J$13 -> Thu - 24 | AH6: =IFERROR(IF(VLOOKUP(AH20,$J$16:$K$74,2,FALSE)=0,"",VLOOKUP(AH20,$J$16:$K$74,2,FALSE)),"") -> 4 a.m. | AI6: 8 a.m. | AJ6: =Schedule!$J$13 -> Thu - 24 | AK6: =IFERROR(IF(VLOOKUP(AK20,$J$16:$K$74,2,FALSE)=0,"",VLOOKUP(AK20,$J$16:$K$74,2,FALSE)),"") -> 8 a.m. | AL6: 2 p.m. | AM6: =Schedule!$J$13 -> Thu - 24 | AN6: =IFERROR(IF(VLOOKUP(AN20,$J$16:$K$74,2,FALSE)=0,"",VLOOKUP(AN20,$J$16:$K$74,2,FALSE)),"") -> 8 a.m. | AO6: 2 p.m. | AP6: =Schedule!$J$13 -> Thu - 24 | AQ6: =IFERROR(IF(VLOOKUP(AQ20,$J$16:$K$74,2,FALSE)=0,"",VLOOKUP(AQ20,$J$16:$K$74,2,FALSE)),"") -> 8 a.m. | AR6: 2 p.m.
A7: 4 | B7: Tracie | C7: E | D7: 10.5 | E7: =(VLOOKUP('Employee Info'!B7,Schedule!$P$14:$Q$35,2,FALSE)+VLOOKUP('Employee Info'!B7,Schedule!$P$38:$Q$59,2,FALSE)) -> 66 | F7: 693 | G7: 3078710573 | H7: Verizon | I7: =VLOOKUP(H7,Carriers!$A$2:$B$10,2,FALSE) -> vtext.com | J7: derekjohnson113@gmail.com | L7: =Schedule!$L$13 -> Fri - 25 | M7: =IFERROR(IF(VLOOKUP(M21,$J$16:$K$74,2,FALSE)=0,"",VLOOKUP(M21,$J$16:$K$74,2,FALSE)),"") ->  | O7: =Schedule!$L$13 -> Fri - 25 | P7: =IFERROR(IF(VLOOKUP(P21,$J$16:$K$74,2,FALSE)=0,"",VLOOKUP(P21,$J$16:$K$74,2,FALSE)),"") ->  | R7: =Schedule!$L$13 -> Fri - 25 | S7: =IFERROR(IF(VLOOKUP(S21,$J$16:$K$74,2,FALSE)=0,"",VLOOKUP(S21,$J$16:$K$74,2,FALSE)),"") -> 2 a.m. | T7: 7:30 a.m. | U7: =Schedule!$L$13 -> Fri - 25 | V7: =IFERROR(IF(VLOOKUP(V21,$J$16:$K$74,2,FALSE)=0,"",VLOOKUP(V21,$J$16:$K$74,2,FALSE)),"") -> 6 a.m. | W7: 10:45 a.m. | X7: =Schedule!$L$13 -> Fri - 25 | Y7: =IFERROR(IF(VLOOKUP(Y21,$J$16:$K$74,2,FALSE)=0,"",VLOOKUP(Y21,$J$16:$K$74,2,FALSE)),"") -> 2 a.m. | Z7: 8 a.m. | AA7: =Schedule!$L$13 -> Fri - 25 | AB7: =IFERROR(IF(VLOOKUP(AB21,$J$16:$K$74,2,FALSE)=0,"",VLOOKUP(AB21,$J$16:$K$74,2,FALSE)),"") -> 2:45 a.m. | AC7: 7:30 a.m. | AD7: =Schedule!$L$13 -> Fri - 25 | AE7: =IFERROR(IF(VLOOKUP(AE21,$J$16:$K$74,2,FALSE)=0,"",VLOOKUP(AE21,$J$16:$K$74,2,FALSE)),"") -> 6 a.m. | AF7: 10 a.m. | AG7: =Schedule!$L$13 -> Fri - 25 | AH7: =IFERROR(IF(VLOOKUP(AH21,$J$16:$K$74,2,FALSE)=0,"",VLOOKUP(AH21,$J$16:$K$74,2,FALSE)),"") -> 4 a.m. | AI7: 8 a.m. | AJ7: =Schedule!$L$13 -> Fri - 25 | AK7: =IFERROR(IF(VLOOKUP(AK21,$J$16:$K$74,2,FALSE)=0,"",VLOOKUP(AK21,$J$16:$K$74,2,FALSE)),"") -> 8 a.m. | AL7: 2 p.m. | AM7: =Schedule!$L$13 -> Fri - 25 | AN7: =IFERROR(IF(VLOOKUP(AN21,$J$16:$K$74,2,FALSE)=0,"",VLOOKUP(AN21,$J$16:$K$74,2,FALSE)),"") -> 8 a.m. | AO7: 2 p.m. | AP7: =Schedule!$L$13 -> Fri - 25 | AQ7: =IFERROR(IF(VLOOKUP(AQ21,$J$16:$K$74,2,FALSE)=0,"",VLOOKUP(AQ21,$J$16:$K$74,2,FALSE)),"") -> 8 a.m. | AR7: 2 p.m.
A8: 5 | B8: Kristi | C8: E | D8: 9 | E8: =(VLOOKUP('Employee Info'!B8,Schedule!$P$14:$Q$35,2,FALSE)+VLOOKUP('Employee Info'!B8,Schedule!$P$38:$Q$59,2,FALSE)) -> 72 | F8: 648 | G8: 3078710574 | H8: Verizon | I8: =VLOOKUP(H8,Carriers!$A$2:$B$10,2,FALSE) -> vtext.com | J8: derekjohnson112@gmail.com | L8: =Schedule!$N$13 -> Sat - 26 | M8: =IFERROR(IF(VLOOKUP(M22,$J$16:$K$74,2,FALSE)=0,"",VLOOKUP(M22,$J$16:$K$74,2,FALSE)),"") ->  | O8: =Schedule!$N$13 -> Sat - 26 | P8: =IFERROR(IF(VLOOKUP(P22,$J$16:$K$74,2,FALSE)=0,"",VLOOKUP(P22,$J$16:$K$74,2,FALSE)),"") ->  | R8: =Schedule!$N$13 -> Sat - 26 | S8: =IFERROR(IF(VLOOKUP(S22,$J$16:$K$74,2,FALSE)=0,"",VLOOKUP(S22,$J$16:$K$74,2,FALSE)),"") -> 2 a.m. | T8: 7:30 a.m. | U8: =Schedule!$N$13 -> Sat - 26 | V8: =IFERROR(IF(VLOOKUP(V22,$J$16:$K$74,2,FALSE)=0,"",VLOOKUP(V22,$J$16:$K$74,2,FALSE)),"") -> OFF | W8: OFF | X8: =Schedule!$N$13 -> Sat - 26 | Y8: =IFERROR(IF(VLOOKUP(Y22,$J$16:$K$74,2,FALSE)=0,"",VLOOKUP(Y22,$J$16:$K$74,2,FALSE)),"") -> 2 a.m. | Z8: 8 a.m. | AA8: =Schedule!$N$13 -> Sat - 26 | AB8: =IFERROR(IF(VLOOKUP(AB22,$J$16:$K$74,2,FALSE)=0,"",VLOOKUP(AB22,$J$16:$K$74,2,FALSE)),"") -> 2:45 a.m. | AC8: 7:30 a.m. | AD8: =Schedule!$N$13 -> Sat - 26 | AE8: =IFERROR(IF(VLOOKUP(AE22,$J$16:$K$74,2,FALSE)=0,"",VLOOKUP(AE22,$J$16:$K$74,2,FALSE)),"") -> 4 a.m. | AF8: 10 a.m. | AG8: =Schedule!$N$13 -> Sat - 26 | AH8: =IFERROR(IF(VLOOKUP(AH22,$J$16:$K$74,2,FALSE)=0,"",VLOOKUP(AH22,$J$16:$K$74,2,FALSE)),"") -> 4 a.m. | AI8: 8 a.m. | AJ8: =Schedule!$N$13 -> Sat - 26 | AK8: =IFERROR(IF(VLOOKUP(AK22,$J$16:$K$74,2,FALSE)=0,"",VLOOKUP(AK22,$J$16:$K$74,2,FALSE)),"") -> 8 a.m. | AL8: 2 p.m. | AM8: =Schedule!$N$13 -> Sat - 26 | AN8: =IFERROR(IF(VLOOKUP(AN22,$J$16:$K$74,2,FALSE)=0,"",VLOOKUP(AN22,$J$16:$K$74,2,FALSE)),"") -> 8 a.m. | AO8: 2 p.m. | AP8: =Schedule!$N$13 -> Sat - 26 | AQ8: =IFERROR(IF(VLOOKUP(AQ22,$J$16:$K$74,2,FALSE)=0,"",VLOOKUP(AQ22,$J$16:$K$74,2,FALSE)),"") -> 8 a.m. | AR8: 2 p.m.
A9: 6 | B9: Will | C9: E | D9: 9 | E9: =(VLOOKUP('Employee Info'!B9,Schedule!$P$14:$Q$35,2,FALSE)+VLOOKUP('Employee Info'!B9,Schedule!$P$38:$Q$59,2,FALSE)) -> 51.75 | F9: 465.75 | G9: 3078710575 | H9: Verizon | I9: =VLOOKUP(H9,Carriers!$A$2:$B$10,2,FALSE) -> vtext.com | J9: derekjohnson113@gmail.com | L9: =Schedule!$D$37 -> Mon - 28 | M9: =IFERROR(IF(VLOOKUP(M23,$J$16:$K$74,2,FALSE)=0,"",VLOOKUP(M23,$J$16:$K$74,2,FALSE)),"") ->  | O9: =Schedule!$D$37 -> Mon - 28 | P9: =IFERROR(IF(VLOOKUP(P23,$J$16:$K$74,2,FALSE)=0,"",VLOOKUP(P23,$J$16:$K$74,2,FALSE)),"") ->  | R9: =Schedule!$D$37 -> Mon - 28 | S9: =IFERROR(IF(VLOOKUP(S23,$J$16:$K$74,2,FALSE)=0,"",VLOOKUP(S23,$J$16:$K$74,2,FALSE)),"") -> 2 a.m. | T9: 7:30 a.m. | U9: =Schedule!$D$37 -> Mon - 28 | V9: =IFERROR(IF(VLOOKUP(V23,$J$16:$K$74,2,FALSE)=0,"",VLOOKUP(V23,$J$16:$K$74,2,FALSE)),"") -> 6 a.m. | W9: 2 p.m. | X9: =Schedule!$D$37 -> Mon - 28 | Y9: =IFERROR(IF(VLOOKUP(Y23,$J$16:$K$74,2,FALSE)=0,"",VLOOKUP(Y23,$J$16:$K$74,2,FALSE)),"") -> 2 a.m. | Z9: 8 a.m. | AA9: =Schedule!$D$37 -> Mon - 28 | AB9: =IFERROR(IF(VLOOKUP(AB23,$J$16:$K$74,2,FALSE)=0,"",VLOOKUP(AB23,$J$16:$K$74,2,FALSE)),"") -> 2:45 a.m. | AC9: 7:30 a.m. | AD9: =Schedule!$D$37 -> Mon - 28 | AE9: =IFERROR(IF(VLOOKUP(AE23,$J$16:$K$74,2,FALSE)=0,"",VLOOKUP(AE23,$J$16:$K$74,2,FALSE)),"") -> 4 a.m. | AF9: 10 a.m. | AG9: =Schedule!$D$37 -> Mon - 28 | AH9: =IFERROR(IF(VLOOKUP(AH23,$J$16:$K$74,2,FALSE)=0,"",VLOOKUP(AH23,$J$16:$K$74,2,FALSE)),"") -> 4 a.m. | AI9: 8 a.m. | AJ9: =Schedule!$D$37 -> Mon - 28 | AK9: =IFERROR(IF(VLOOKUP(AK23,$J$16:$K$74,2,FALSE)=0,"",VLOOKUP(AK23,$J$16:$K$74,2,FALSE)),"") -> 8 a.m. | AL9: 2 p.m. | AM9: =Schedule!$D$37 -> Mon - 28 | AN9: =IFERROR(IF(VLOOKUP(AN23,$J$16:$K$74,2,FALSE)=0,"",VLOOKUP(AN23,$J$16:$K$74,2,FALSE)),"") -> 8 a.m. | AO9: 2 p.m. | AP9: =Schedule!$D$37 -> Mon - 28 | AQ9: =IFERROR(IF(VLOOKUP(AQ23,$J$16:$K$74,2,FALSE)=0,"",VLOOKUP(AQ23,$J$16:$K$74,2,FALSE)),"") -> 8 a.m. | AR9: 2 p.m.
A10: 7 | B10: Tiffany | C10: E | D10: 9.5 | E10: =(VLOOKUP('Employee Info'!B10,Schedule!$P$14:$Q$35,2,FALSE)+VLOOKUP('Employee Info'!B10,Schedule!$P$38:$Q$59,2,FALSE)) -> 56 | F10: 532 | G10: 3078710576 | H10: Verizon | I10: =VLOOKUP(H10,Carriers!$A$2:$B$10,2,FALSE) -> vtext.com | J10: derekjohnson112@gmail.com | L10: =Schedule!$F$37 -> Tue - 29 | M10: =IFERROR(IF(VLOOKUP(M24,$J$16:$K$74,2,FALSE)=0,"",VLOOKUP(M24,$J$16:$K$74,2,FALSE)),"") ->  | O10: =Schedule!$F$37 -> Tue - 29 | P10: =IFERROR(IF(VLOOKUP(P24,$J$16:$K$74,2,FALSE)=0,"",VLOOKUP(P24,$J$16:$K$74,2,FALSE)),"") ->  | R10: =Schedule!$F$37 -> Tue - 29 | S10: =IFERROR(IF(VLOOKUP(S24,$J$16:$K$74,2,FALSE)=0,"",VLOOKUP(S24,$J$16:$K$74,2,FALSE)),"") -> 2 a.m. | T10: 7:30 a.m. | U10: =Schedule!$F$37 -> Tue - 29 | V10: =IFERROR(IF(VLOOKUP(V24,$J$16:$K$74,2,FALSE)=0,"",VLOOKUP(V24,$J$16:$K$74,2,FALSE)),"") -> 6 a.m. | W10: 2 p.m. | X10: =Schedule!$F$37 -> Tue - 29 | Y10: =IFERROR(IF(VLOOKUP(Y24,$J$16:$K$74,2,FALSE)=0,"",VLOOKUP(Y24,$J$16:$K$74,2,FALSE)),"") -> 2 a.m. | Z10: 8 a.m. | AA10: =Schedule!$F$37 -> Tue - 29 | AB10: =IFERROR(IF(VLOOKUP(AB24,$J$16:$K$74,2,FALSE)=0,"",VLOOKUP(AB24,$J$16:$K$74,2,FALSE)),"") -> 2:45 a.m. | AC10: 7:30 a.m. | AD10: =Schedule!$F$37 -> Tue - 29 | AE10: =IFERROR(IF(VLOOKUP(AE24,$J$16:$K$74,2,FALSE)=0,"",VLOOKUP(AE24,$J$16:$K$74,2,FALSE)),"") -> 6 a.m. | AF10: 10 a.m. | AG10: =Schedule!$F$37 -> Tue - 29 | AH10: =IFERROR(IF(VLOOKUP(AH24,$J$16:$K$74,2,FALSE)=0,"",VLOOKUP(AH24,$J$16:$K$74,2,FALSE)),"") -> 4 a.m. | AI10: 8 a.m. | AJ10: =Schedule!$F$37 -> Tue - 29 | AK10: =IFERROR(IF(VLOOKUP(AK24,$J$16:$K$74,2,FALSE)=0,"",VLOOKUP(AK24,$J$16:$K$74,2,FALSE)),"") -> 8 a.m. | AL10: 2 p.m. | AM10: =Schedule!$F$37 -> Tue - 29 | AN10: =IFERROR(IF(VLOOKUP(AN24,$J$16:$K$74,2,FALSE)=0,"",VLOOKUP(AN24,$J$16:$K$74,2,FALSE)),"") -> 8 a.m. | AO10: 2 p.m. | AP10: =Schedule!$F$37 -> Tue - 29 | AQ10: =IFERROR(IF(VLOOKUP(AQ24,$J$16:$K$74,2,FALSE)=0,"",VLOOKUP(AQ24,$J$16:$K$74,2,FALSE)),"") -> 8 a.m. | AR10: 2 p.m.
A11: 8 | B11: Emily | C11: E | D11: 9.5 | E11: =(VLOOKUP('Employee Info'!B11,Schedule!$P$14:$Q$35,2,FALSE)+VLOOKUP('Employee Info'!B11,Schedule!$P$38:$Q$59,2,FALSE)) -> 48 | F11: 456 | G11: 3078710577 | H11: Verizon | I11: =VLOOKUP(H11,Carriers!$A$2:$B$10,2,FALSE) -> vtext.com | J11: derekjohnson113@gmail.com | L11: =Schedule!$H$37 -> Wed - 30 | M11: =IFERROR(IF(VLOOKUP(M25,$J$16:$K$74,2,FALSE)=0,"",VLOOKUP(M25,$J$16:$K$74,2,FALSE)),"") ->  | O11: =Schedule!$H$37 -> Wed - 30 | P11: =IFERROR(IF(VLOOKUP(P25,$J$16:$K$74,2,FALSE)=0,"",VLOOKUP(P25,$J$16:$K$74,2,FALSE)),"") ->  | R11: =Schedule!$H$37 -> Wed - 30 | S11: =IFERROR(IF(VLOOKUP(S25,$J$16:$K$74,2,FALSE)=0,"",VLOOKUP(S25,$J$16:$K$74,2,FALSE)),"") -> 2 a.m. | T11: 7:30 a.m. | U11: =Schedule!$H$37 -> Wed - 30 | V11: =IFERROR(IF(VLOOKUP(V25,$J$16:$K$74,2,FALSE)=0,"",VLOOKUP(V25,$J$16:$K$74,2,FALSE)),"") -> 6 a.m. | W11: 2 p.m. | X11: =Schedule!$H$37 -> Wed - 30 | Y11: =IFERROR(IF(VLOOKUP(Y25,$J$16:$K$74,2,FALSE)=0,"",VLOOKUP(Y25,$J$16:$K$74,2,FALSE)),"") -> 2 a.m. | Z11: 8 a.m. | AA11: =Schedule!$H$37 -> Wed - 30 | AB11: =IFERROR(IF(VLOOKUP(AB25,$J$16:$K$74,2,FALSE)=0,"",VLOOKUP(AB25,$J$16:$K$74,2,FALSE)),"") -> 2:45 a.m. | AC11: 7:30 a.m. | AD11: =Schedule!$H$37 -> Wed - 30 | AE11: =IFERROR(IF(VLOOKUP(AE25,$J$16:$K$74,2,FALSE)=0,"",VLOOKUP(AE25,$J$16:$K$74,2,FALSE)),"") -> 6 a.m. | AF11: 10 a.m. | AG11: =Schedule!$H$37 -> Wed - 30 | AH11: =IFERROR(IF(VLOOKUP(AH25,$J$16:$K$74,2,FALSE)=0,"",VLOOKUP(AH25,$J$16:$K$74,2,FALSE)),"") -> 4 a.m. | AI11: 8 a.m. | AJ11: =Schedule!$H$37 -> Wed - 30 | AK11: =IFERROR(IF(VLOOKUP(AK25,$J$16:$K$74,2,FALSE)=0,"",VLOOKUP(AK25,$J$16:$K$74,2,FALSE)),"") -> 8 a.m. | AL11: 2 p.m. | AM11: =Schedule!$H$37 -> Wed - 30 | AN11: =IFERROR(IF(VLOOKUP(AN25,$J$16:$K$74,2,FALSE)=0,"",VLOOKUP(AN25,$J$16:$K$74,2,FALSE)),"") -> 8 a.m. | AO11: 2 p.m. | AP11: =Schedule!$H$37 -> Wed - 30 | AQ11: =IFERROR(IF(VLOOKUP(AQ25,$J$16:$K$74,2,FALSE)=0,"",VLOOKUP(AQ25,$J$16:$K$74,2,FALSE)),"") -> 8 a.m. | AR11: 2 p.m.
A12: 9 | B12: Danielle | C12: E | D12: 9 | E12: =(VLOOKUP('Employee Info'!B12,Schedule!$P$14:$Q$35,2,FALSE)+VLOOKUP('Employee Info'!B12,Schedule!$P$38:$Q$59,2,FALSE)) -> 72 | F12: 648 | G12: 3078710578 | H12: Verizon | I12: =VLOOKUP(H12,Carriers!$A$2:$B$10,2,FALSE) -> vtext.com | J12: derekjohnson112@gmail.com | L12: =Schedule!$J$37 -> Thu - 31 | M12: =IFERROR(IF(VLOOKUP(M26,$J$16:$K$74,2,FALSE)=0,"",VLOOKUP(M26,$J$16:$K$74,2,FALSE)),"") ->  | O12: =Schedule!$J$37 -> Thu - 31 | P12: =IFERROR(IF(VLOOKUP(P26,$J$16:$K$74,2,FALSE)=0,"",VLOOKUP(P26,$J$16:$K$74,2,FALSE)),"") ->  | R12: =Schedule!$J$37 -> Thu - 31 | S12: =IFERROR(IF(VLOOKUP(S26,$J$16:$K$74,2,FALSE)=0,"",VLOOKUP(S26,$J$16:$K$74,2,FALSE)),"") -> 2 a.m. | T12: 7:30 a.m. | U12: =Schedule!$J$37 -> Thu - 31 | V12: =IFERROR(IF(VLOOKUP(V26,$J$16:$K$74,2,FALSE)=0,"",VLOOKUP(V26,$J$16:$K$74,2,FALSE)),"") -> 6 a.m. | W12: 10:45 a.m. | X12: =Schedule!$J$37 -> Thu - 31 | Y12: =IFERROR(IF(VLOOKUP(Y26,$J$16:$K$74,2,FALSE)=0,"",VLOOKUP(Y26,$J$16:$K$74,2,FALSE)),"") -> 2 a.m. | Z12: 8 a.m. | AA12: =Schedule!$J$37 -> Thu - 31 | AB12: =IFERROR(IF(VLOOKUP(AB26,$J$16:$K$74,2,FALSE)=0,"",VLOOKUP(AB26,$J$16:$K$74,2,FALSE)),"") -> 2:45 a.m. | AC12: 7:30 a.m. | AD12: =Schedule!$J$37 -> Thu - 31 | AE12: =IFERROR(IF(VLOOKUP(AE26,$J$16:$K$74,2,FALSE)=0,"",VLOOKUP(AE26,$J$16:$K$74,2,FALSE)),"") -> 6 a.m. | AF12: 10 a.m. | AG12: =Schedule!$J$37 -> Thu - 31 | AH12: =IFERROR(IF(VLOOKUP(AH26,$J$16:$K$74,2,FALSE)=0,"",VLOOKUP(AH26,$J$16:$K$74,2,FALSE)),"") -> 4 a.m. | AI12: 8 a.m. | AJ12: =Schedule!$J$37 -> Thu - 31 | AK12: =IFERROR(IF(VLOOKUP(AK26,$J$16:$K$74,2,FALSE)=0,"",VLOOKUP(AK26,$J$16:$K$74,2,FALSE)),"") -> 8 a.m. | AL12: 2 p.m. | AM12: =Schedule!$J$37 -> Thu - 31 | AN12: =IFERROR(IF(VLOOKUP(AN26,$J$16:$K$74,2,FALSE)=0,"",VLOOKUP(AN26,$J$16:$K$74,2,FALSE)),"") -> 8 a.m. | AO12: 2 p.m. | AP12: =Schedule!$J$37 -> Thu - 31 | AQ12: =IFERROR(IF(VLOOKUP(AQ26,$J$16:$K$74,2,FALSE)=0,"",VLOOKUP(AQ26,$J$16:$K$74,2,FALSE)),"") -> 8 a.m. | AR12: 2 p.m.
A13: 10 | B13: Haley | C13: E | D13: 8 | E13: =(VLOOKUP('Employee Info'!B13,Schedule!$P$14:$Q$35,2,FALSE)+VLOOKUP('Employee Info'!B13,Schedule!$P$38:$Q$59,2,FALSE)) -> 72 | F13: 576 | G13: 3078710579 | H13: Verizon | I13: =VLOOKUP(H13,Carriers!$A$2:$B$10,2,FALSE) -> vtext.com | J13: derekjohnson113@gmail.com | L13: =Schedule!$L$37 -> Fri - 1 | M13: =IFERROR(IF(VLOOKUP(M27,$J$16:$K$74,2,FALSE)=0,"",VLOOKUP(M27,$J$16:$K$74,2,FALSE)),"") ->  | O13: =Schedule!$L$37 -> Fri - 1 | P13: =IFERROR(IF(VLOOKUP(P27,$J$16:$K$74,2,FALSE)=0,"",VLOOKUP(P27,$J$16:$K$74,2,FALSE)),"") ->  | R13: =Schedule!$L$37 -> Fri - 1 | S13: =IFERROR(IF(VLOOKUP(S27,$J$16:$K$74,2,FALSE)=0,"",VLOOKUP(S27,$J$16:$K$74,2,FALSE)),"") -> 2 a.m. | T13: 7:30 a.m. | U13: =Schedule!$L$37 -> Fri - 1 | V13: =IFERROR(IF(VLOOKUP(V27,$J$16:$K$74,2,FALSE)=0,"",VLOOKUP(V27,$J$16:$K$74,2,FALSE)),"") -> 6 a.m. | W13: 10:45 a.m. | X13: =Schedule!$L$37 -> Fri - 1 | Y13: =IFERROR(IF(VLOOKUP(Y27,$J$16:$K$74,2,FALSE)=0,"",VLOOKUP(Y27,$J$16:$K$74,2,FALSE)),"") -> 2 a.m. | Z13: 8 a.m. | AA13: =Schedule!$L$37 -> Fri - 1 | AB13: =IFERROR(IF(VLOOKUP(AB27,$J$16:$K$74,2,FALSE)=0,"",VLOOKUP(AB27,$J$16:$K$74,2,FALSE)),"") -> 2:45 a.m. | AC13: 7:30 a.m. | AD13: =Schedule!$L$37 -> Fri - 1 | AE13: =IFERROR(IF(VLOOKUP(AE27,$J$16:$K$74,2,FALSE)=0,"",VLOOKUP(AE27,$J$16:$K$74,2,FALSE)),"") -> 6 a.m. | AF13: 10 a.m. | AG13: =Schedule!$L$37 -> Fri - 1 | AH13: =IFERROR(IF(VLOOKUP(AH27,$J$16:$K$74,2,FALSE)=0,"",VLOOKUP(AH27,$J$16:$K$74,2,FALSE)),"") -> 4 a.m. | AI13: 8 a.m. | AJ13: =Schedule!$L$37 -> Fri - 1 | AK13: =IFERROR(IF(VLOOKUP(AK27,$J$16:$K$74,2,FALSE)=0,"",VLOOKUP(AK27,$J$16:$K$74,2,FALSE)),"") -> 8 a.m. | AL13: 2 p.m. | AM13: =Schedule!$L$37 -> Fri - 1 | AN13: =IFERROR(IF(VLOOKUP(AN27,$J$16:$K$74,2,FALSE)=0,"",VLOOKUP(AN27,$J$16:$K$74,2,FALSE)),"") -> 8 a.m. | AO13: 2 p.m. | AP13: =Schedule!$L$37 -> Fri - 1 | AQ13: =IFERROR(IF(VLOOKUP(AQ27,$J$16:$K$74,2,FALSE)=0,"",VLOOKUP(AQ27,$J$16:$K$74,2,FALSE)),"") -> 8 a.m. | AR13: 2 p.m.
A14: 11 | B14: Pauline | C14: E | D14: 11 | E14: =(VLOOKUP('Employee Info'!B14,Schedule!$P$14:$Q$35,2,FALSE)+VLOOKUP('Employee Info'!B14,Schedule!$P$38:$Q$59,2,FALSE)) -> 72 | F14: 792 | G14: 3078710580 | H14: verizon | I14: =VLOOKUP(H14,Carriers!$A$2:$B$10,2,FALSE) -> vtext.com | J14: derekjohnson112@gmail.com | L14: =Schedule!$N$37 -> Sat - 2 | M14: =IFERROR(IF(VLOOKUP(M28,$J$16:$K$74,2,FALSE)=0,"",VLOOKUP(M28,$J$16:$K$74,2,FALSE)),"") ->  | O14: =Schedule!$N$37 -> Sat - 2 | P14: =IFERROR(IF(VLOOKUP(P28,$J$16:$K$74,2,FALSE)=0,"",VLOOKUP(P28,$J$16:$K$74,2,FALSE)),"") ->  | R14: =Schedule!$N$37 -> Sat - 2 | S14: =IFERROR(IF(VLOOKUP(S28,$J$16:$K$74,2,FALSE)=0,"",VLOOKUP(S28,$J$16:$K$74,2,FALSE)),"") -> 2 a.m. | T14: 9 a.m. | U14: =Schedule!$N$37 -> Sat - 2 | V14: =IFERROR(IF(VLOOKUP(V28,$J$16:$K$74,2,FALSE)=0,"",VLOOKUP(V28,$J$16:$K$74,2,FALSE)),"") -> OFF | W14: =IFERROR(IF(VLOOKUP(W28,$J$16:$K$74,2,FALSE)=0,"",VLOOKUP(W28,$J$16:$K$74,2,FALSE)),"") -> OFF | X14: =Schedule!$N$37 -> Sat - 2 | Y14: =IFERROR(IF(VLOOKUP(Y28,$J$16:$K$74,2,FALSE)=0,"",VLOOKUP(Y28,$J$16:$K$74,2,FALSE)),"") -> 2 a.m. | Z14: 8 a.m. | AA14: =Schedule!$N$37 -> Sat - 2 | AB14: =IFERROR(IF(VLOOKUP(AB28,$J$16:$K$74,2,FALSE)=0,"",VLOOKUP(AB28,$J$16:$K$74,2,FALSE)),"") -> 2:45 a.m. | AC14: 7:30 a.m. | AD14: =Schedule!$N$37 -> Sat - 2 | AE14: =IFERROR(IF(VLOOKUP(AE28,$J$16:$K$74,2,FALSE)=0,"",VLOOKUP(AE28,$J$16:$K$74,2,FALSE)),"") -> 4 a.m. | AF14: 10 a.m. | AG14: =Schedule!$N$37 -> Sat - 2 | AH14: =IFERROR(IF(VLOOKUP(AH28,$J$16:$K$74,2,FALSE)=0,"",VLOOKUP(AH28,$J$16:$K$74,2,FALSE)),"") -> 4 a.m. | AI14: 8 a.m. | AJ14: =Schedule!$N$37 -> Sat - 2 | AK14: =IFERROR(IF(VLOOKUP(AK28,$J$16:$K$74,2,FALSE)=0,"",VLOOKUP(AK28,$J$16:$K$74,2,FALSE)),"") -> 8 a.m. | AL14: 2 p.m. | AM14: =Schedule!$N$37 -> Sat - 2 | AN14: =IFERROR(IF(VLOOKUP(AN28,$J$16:$K$74,2,FALSE)=0,"",VLOOKUP(AN28,$J$16:$K$74,2,FALSE)),"") -> 8 a.m. | AO14: 2 p.m. | AP14: =Schedule!$N$37 -> Sat - 2 | AQ14: =IFERROR(IF(VLOOKUP(AQ28,$J$16:$K$74,2,FALSE)=0,"",VLOOKUP(AQ28,$J$16:$K$74,2,FALSE)),"") -> 8 a.m. | AR14: 2 p.m.
B16: 2 Week Budget | J16: OFF | K16: OFF | L16: =B4 -> Jay | M16: start | N16: end | O16: =B5 -> Penny | P16: start | Q16: end | R16: =B6 -> Nissa | S16: start | T16: end | U16: =B7 -> Tracie | V16: start | W16: end | X16: =B8 -> Kristi | Y16: start | Z16: end | AA16: =B9 -> Will | AB16: start | AC16: end | AD16: =B10 -> Tiffany | AE16: start | AF16: end | AG16: =B11 -> Emily | AH16: start | AI16: end | AJ16: =B12 -> Danielle | AK16: start | AL16: end | AM16: =B13 -> Haley | AN16: start | AO16: end | AP16: =B14 -> Pauline | AQ16: start | AR16: end
B17: 4850 | J17: 0 | L17: =Schedule!$D$13 -> Mon - 21 | M17: =IFERROR(VLOOKUP($L$16,Schedule!$B$64:$D$74,2,FALSE),"") ->  | N17: =IFERROR(VLOOKUP($L$16,Schedule!$B$64:$D$74,3,FALSE),"") ->  | O17: =Schedule!$D$13 -> Mon - 21 | P17: =IFERROR(VLOOKUP(O16,Schedule!$B$64:$D$74,2,FALSE),"") -> 0 | Q17: =IFERROR(VLOOKUP(O16,Schedule!$B$64:$D$74,3,FALSE),"") -> 0 | R17: =Schedule!$D$13 -> Mon - 21 | S17: =IFERROR(VLOOKUP(R16,Schedule!$B$64:$D$74,2,FALSE),"") -> OFF | T17: =IFERROR(VLOOKUP(R16,Schedule!$B$64:$D$74,3,FALSE),"") -> OFF | U17: =Schedule!$D$13 -> Mon - 21 | V17: =IFERROR(VLOOKUP(U16,Schedule!$B$64:$D$74,2,FALSE),"") -> 06:00:00 | W17: =IFERROR(VLOOKUP(U16,Schedule!$B$64:$D$74,3,FALSE),"") -> 13:00:00 | X17: =Schedule!$D$13 -> Mon - 21 | Y17: =IFERROR(VLOOKUP(X16,Schedule!$B$64:$D$74,2,FALSE),"") -> 02:00:00 | Z17: =IFERROR(VLOOKUP(X16,Schedule!$B$64:$D$74,3,FALSE),"") -> 08:00:00 | AA17: =Schedule!$D$13 -> Mon - 21 | AB17: =IFERROR(VLOOKUP(AA16,Schedule!$B$64:$D$74,2,FALSE),"") -> 02:45:00 | AC17: =IFERROR(VLOOKUP(AA16,Schedule!$B$64:$D$74,3,FALSE),"") -> 07:00:00 | AD17: =Schedule!$D$13 -> Mon - 21 | AE17: =IFERROR(VLOOKUP(AD16,Schedule!$B$64:$D$74,2,FALSE),"") -> 04:00:00 | AF17: =IFERROR(VLOOKUP(AD16,Schedule!$B$64:$D$74,3,FALSE),"") -> 04:00:00 | AG17: =Schedule!$D$13 -> Mon - 21 | AH17: =IFERROR(VLOOKUP(AG16,Schedule!$B$64:$D$74,2,FALSE),"") -> 04:00:00 | AI17: =IFERROR(VLOOKUP(AG16,Schedule!$B$64:$D$74,3,FALSE),"") -> 04:00:00 | AJ17: =Schedule!$D$13 -> Mon - 21 | AK17: =IFERROR(VLOOKUP(AJ16,Schedule!$B$64:$D$74,2,FALSE),"") -> 08:00:00 | AL17: =IFERROR(VLOOKUP(AJ16,Schedule!$B$64:$D$74,3,FALSE),"") -> 08:00:00 | AM17: =Schedule!$D$13 -> Mon - 21 | AN17: =IFERROR(VLOOKUP(AM16,Schedule!$B$64:$D$74,2,FALSE),"") -> 08:00:00 | AO17: =IFERROR(VLOOKUP(AM16,Schedule!$B$64:$D$74,3,FALSE),"") -> 08:00:00 | AP17: =Schedule!$D$13 -> Mon - 21 | AQ17: =IFERROR(VLOOKUP(AP16,Schedule!$B$64:$D$74,2,FALSE),"") -> 08:00:00 | AR17: =IFERROR(VLOOKUP(AP16,Schedule!$B$64:$D$74,3,FALSE),"") -> 08:00:00
J18: 0.04166666667 | K18: 1 a.m. | L18: =Schedule!$F$13 -> Tue - 22 | M18: =IFERROR(VLOOKUP($L$16,Schedule!$E$64:$G$74,2,FALSE),"") -> 0 | N18: =IFERROR(VLOOKUP($L$16,Schedule!$E$64:$G$74,3,FALSE),"") -> 0 | O18: =Schedule!$F$13 -> Tue - 22 | P18: =IFERROR(VLOOKUP(O16,Schedule!$E$64:$G$74,2,FALSE),"") -> 0 | Q18: =IFERROR(VLOOKUP(O16,Schedule!$E$64:$G$74,3,FALSE),"") -> 0 | R18: =Schedule!$F$13 -> Tue - 22 | S18: =IFERROR(VLOOKUP(R16,Schedule!$E$64:$G$74,2,FALSE),"") -> 02:00:00 | T18: =IFERROR(VLOOKUP(R16,Schedule!$E$64:$G$74,3,FALSE),"") -> 07:00:00 | U18: =Schedule!$F$13 -> Tue - 22 | V18: =IFERROR(VLOOKUP(U16,Schedule!$E$64:$G$74,2,FALSE),"") -> 06:00:00 | W18: =IFERROR(VLOOKUP(U16,Schedule!$E$64:$G$74,3,FALSE),"") -> 14:00:00 | X18: =Schedule!$F$13 -> Tue - 22 | Y18: =IFERROR(VLOOKUP(X16,Schedule!$E$64:$G$74,2,FALSE),"") -> 02:00:00 | Z18: =IFERROR(VLOOKUP(X16,Schedule!$E$64:$G$74,3,FALSE),"") -> 08:00:00 | AA18: =Schedule!$F$13 -> Tue - 22 | AB18: =IFERROR(VLOOKUP(AA16,Schedule!$E$64:$G$74,2,FALSE),"") -> OFF | AC18: =IFERROR(VLOOKUP(AA16,Schedule!$E$64:$G$74,3,FALSE),"") -> OFF | AD18: =Schedule!$F$13 -> Tue - 22 | AE18: =IFERROR(VLOOKUP(AD16,Schedule!$E$64:$G$74,2,FALSE),"") -> 06:00:00 | AF18: =IFERROR(VLOOKUP(AD16,Schedule!$E$64:$G$74,3,FALSE),"") -> 10:00:00 | AG18: =Schedule!$F$13 -> Tue - 22 | AH18: =IFERROR(VLOOKUP(AG16,Schedule!$E$64:$G$74,2,FALSE),"") -> 04:00:00 | AI18: =IFERROR(VLOOKUP(AG16,Schedule!$E$64:$G$74,3,FALSE),"") -> 08:00:00 | AJ18: =Schedule!$F$13 -> Tue - 22 | AK18: =IFERROR(VLOOKUP(AJ16,Schedule!$E$64:$G$74,2,FALSE),"") -> 08:00:00 | AL18: =IFERROR(VLOOKUP(AJ16,Schedule!$E$64:$G$74,3,FALSE),"") -> 14:00:00 | AM18: =Schedule!$F$13 -> Tue - 22 | AN18: =IFERROR(VLOOKUP(AM16,Schedule!$E$64:$G$74,2,FALSE),"") -> 08:00:00 | AO18: =IFERROR(VLOOKUP(AM16,Schedule!$E$64:$G$74,3,FALSE),"") -> 14:00:00 | AP18: =Schedule!$F$13 -> Tue - 22 | AQ18: =IFERROR(VLOOKUP(AP16,Schedule!$E$64:$G$74,2,FALSE),"") -> 08:00:00 | AR18: =IFERROR(VLOOKUP(AP16,Schedule!$E$64:$G$74,3,FALSE),"") -> 14:00:00
B19: 2 Week Actual | J19: 0.05208333333 | K19: 1:15 a.m. | L19: =Schedule!$H$13 -> Wed - 23 | M19: =IFERROR(VLOOKUP($L$16,Schedule!$H$64:$J$74,2,FALSE),"") ->  | N19: =IFERROR(VLOOKUP($L$16,Schedule!$H$64:$J$74,3,FALSE),"") ->  | O19: =Schedule!$H$13 -> Wed - 23 | P19: =IFERROR(VLOOKUP(O16,Schedule!$H$64:$J$74,2,FALSE),"") -> 0 | Q19: =IFERROR(VLOOKUP(O16,Schedule!$H$64:$J$74,3,FALSE),"") -> 0 | R19: =Schedule!$H$13 -> Wed - 23 | S19: =IFERROR(VLOOKUP(R16,Schedule!$H$64:$J$74,2,FALSE),"") -> 02:00:00 | T19: =IFERROR(VLOOKUP(R16,Schedule!$H$64:$J$74,3,FALSE),"") -> 07:30:00 | U19: =Schedule!$H$13 -> Wed - 23 | V19: =IFERROR(VLOOKUP(U16,Schedule!$H$64:$J$74,2,FALSE),"") -> 06:00:00 | W19: =IFERROR(VLOOKUP(U16,Schedule!$H$64:$J$74,3,FALSE),"") -> 14:00:00 | X19: =Schedule!$H$13 -> Wed - 23 | Y19: =IFERROR(VLOOKUP(X16,Schedule!$H$64:$J$74,2,FALSE),"") -> 02:00:00 | Z19: =IFERROR(VLOOKUP(X16,Schedule!$H$64:$J$74,3,FALSE),"") -> 08:00:00 | AA19: =Schedule!$H$13 -> Wed - 23 | AB19: =IFERROR(VLOOKUP(AA16,Schedule!$H$64:$J$74,2,FALSE),"") -> 02:45:00 | AC19: =IFERROR(VLOOKUP(AA16,Schedule!$H$64:$J$74,3,FALSE),"") -> 07:30:00 | AD19: =Schedule!$H$13 -> Wed - 23 | AE19: =IFERROR(VLOOKUP(AD16,Schedule!$H$64:$J$74,2,FALSE),"") -> 06:00:00 | AF19: =IFERROR(VLOOKUP(AD16,Schedule!$H$64:$J$74,3,FALSE),"") -> 10:00:00 | AG19: =Schedule!$H$13 -> Wed - 23 | AH19: =IFERROR(VLOOKUP(AG16,Schedule!$H$64:$J$74,2,FALSE),"") -> 04:00:00 | AI19: =IFERROR(VLOOKUP(AG16,Schedule!$H$64:$J$74,3,FALSE),"") -> 08:00:00 | AJ19: =Schedule!$H$13 -> Wed - 23 | AK19: =IFERROR(VLOOKUP(AJ16,Schedule!$H$64:$J$74,2,FALSE),"") -> 08:00:00 | AL19: =IFERROR(VLOOKUP(AJ16,Schedule!$H$64:$J$74,3,FALSE),"") -> 14:00:00 | AM19: =Schedule!$H$13 -> Wed - 23 | AN19: =IFERROR(VLOOKUP(AM16,Schedule!$H$64:$J$74,2,FALSE),"") -> 08:00:00 | AO19: =IFERROR(VLOOKUP(AM16,Schedule!$H$64:$J$74,3,FALSE),"") -> 14:00:00 | AP19: =Schedule!$H$13 -> Wed - 23 | AQ19: =IFERROR(VLOOKUP(AP16,Schedule!$H$64:$J$74,2,FALSE),"") -> 08:00:00 | AR19: =IFERROR(VLOOKUP(AP16,Schedule!$H$64:$J$74,3,FALSE),"") -> 14:00:00
B20: =SUM(F4:F14) -> 5425.75 | J20: 0.0625 | K20: 1:30 a.m. | L20: =Schedule!$J$13 -> Thu - 24 | M20: =IFERROR(VLOOKUP($L$16,Schedule!$K$64:$M$74,2,FALSE),"") -> 0 | N20: =IFERROR(VLOOKUP($L$16,Schedule!$K$64:$M$74,3,FALSE),"") -> 0 | O20: =Schedule!$J$13 -> Thu - 24 | P20: =IFERROR(VLOOKUP(O16,Schedule!$K$64:$M$74,2,FALSE),"") -> 0 | Q20: =IFERROR(VLOOKUP(O16,Schedule!$K$64:$M$74,3,FALSE),"") -> 0 | R20: =Schedule!$J$13 -> Thu - 24 | S20: =IFERROR(VLOOKUP(R16,Schedule!$K$64:$M$74,2,FALSE),"") -> 02:00:00 | T20: =IFERROR(VLOOKUP(R16,Schedule!$K$64:$M$74,3,FALSE),"") -> 07:30:00 | U20: =Schedule!$J$13 -> Thu - 24 | V20: =IFERROR(VLOOKUP(U16,Schedule!$K$64:$M$74,2,FALSE),"") -> 06:00:00 | W20: =IFERROR(VLOOKUP(U16,Schedule!$K$64:$M$74,3,FALSE),"") -> 10:45:00 | X20: =Schedule!$J$13 -> Thu - 24 | Y20: =IFERROR(VLOOKUP(X16,Schedule!$K$64:$M$74,2,FALSE),"") -> 02:00:00 | Z20: =IFERROR(VLOOKUP(X16,Schedule!$K$64:$M$74,3,FALSE),"") -> 08:00:00 | AA20: =Schedule!$J$13 -> Thu - 24 | AB20: =IFERROR(VLOOKUP(AA16,Schedule!$K$64:$M$74,2,FALSE),"") -> 02:45:00 | AC20: =IFERROR(VLOOKUP(AA16,Schedule!$K$64:$M$74,3,FALSE),"") -> 07:30:00 | AD20: =Schedule!$J$13 -> Thu - 24 | AE20: =IFERROR(VLOOKUP(AD16,Schedule!$K$64:$M$74,2,FALSE),"") -> 06:00:00 | AF20: =IFERROR(VLOOKUP(AD16,Schedule!$K$64:$M$74,3,FALSE),"") -> 10:00:00 | AG20: =Schedule!$J$13 -> Thu - 24 | AH20: =IFERROR(VLOOKUP(AG16,Schedule!$K$64:$M$74,2,FALSE),"") -> 04:00:00 | AI20: =IFERROR(VLOOKUP(AG16,Schedule!$K$64:$M$74,3,FALSE),"") -> 08:00:00 | AJ20: =Schedule!$J$13 -> Thu - 24 | AK20: =IFERROR(VLOOKUP(AJ16,Schedule!$K$64:$M$74,2,FALSE),"") -> 08:00:00 | AL20: =IFERROR(VLOOKUP(AJ16,Schedule!$K$64:$M$74,3,FALSE),"") -> 14:00:00 | AM20: =Schedule!$J$13 -> Thu - 24 | AN20: =IFERROR(VLOOKUP(AM16,Schedule!$K$64:$M$74,2,FALSE),"") -> 08:00:00 | AO20: =IFERROR(VLOOKUP(AM16,Schedule!$K$64:$M$74,3,FALSE),"") -> 14:00:00 | AP20: =Schedule!$J$13 -> Thu - 24 | AQ20: =IFERROR(VLOOKUP(AP16,Schedule!$K$64:$M$74,2,FALSE),"") -> 08:00:00 | AR20: =IFERROR(VLOOKUP(AP16,Schedule!$K$64:$M$74,3,FALSE),"") -> 14:00:00
J21: 0.07291666667 | K21: 1:45 a.m. | L21: =Schedule!$L$13 -> Fri - 25 | M21: =IFERROR(VLOOKUP($L$16,Schedule!$N$64:$P$74,2,FALSE),"") ->  | N21: =IFERROR(VLOOKUP($L$16,Schedule!$N$64:$P$74,3,FALSE),"") ->  | O21: =Schedule!$L$13 -> Fri - 25 | P21: =IFERROR(VLOOKUP(O16,Schedule!$N$64:$P$74,2,FALSE),"") -> 0 | Q21: =IFERROR(VLOOKUP(O16,Schedule!$N$64:$P$74,3,FALSE),"") -> 0 | R21: =Schedule!$L$13 -> Fri - 25 | S21: =IFERROR(VLOOKUP(R16,Schedule!$N$64:$P$74,2,FALSE),"") -> 02:00:00 | T21: =IFERROR(VLOOKUP(R16,Schedule!$N$64:$P$74,3,FALSE),"") -> 07:30:00 | U21: =Schedule!$L$13 -> Fri - 25 | V21: =IFERROR(VLOOKUP(U16,Schedule!$N$64:$P$74,2,FALSE),"") -> 06:00:00 | W21: =IFERROR(VLOOKUP(U16,Schedule!$N$64:$P$74,3,FALSE),"") -> 10:45:00 | X21: =Schedule!$L$13 -> Fri - 25 | Y21: =IFERROR(VLOOKUP(X16,Schedule!$N$64:$P$74,2,FALSE),"") -> 02:00:00 | Z21: =IFERROR(VLOOKUP(X16,Schedule!$N$64:$P$74,3,FALSE),"") -> 08:00:00 | AA21: =Schedule!$L$13 -> Fri - 25 | AB21: =IFERROR(VLOOKUP(AA16,Schedule!$N$64:$P$74,2,FALSE),"") -> 02:45:00 | AC21: =IFERROR(VLOOKUP(AA16,Schedule!$N$64:$P$74,3,FALSE),"") -> 07:30:00 | AD21: =Schedule!$L$13 -> Fri - 25 | AE21: =IFERROR(VLOOKUP(AD16,Schedule!$N$64:$P$74,2,FALSE),"") -> 06:00:00 | AF21: =IFERROR(VLOOKUP(AD16,Schedule!$N$64:$P$74,3,FALSE),"") -> 10:00:00 | AG21: =Schedule!$L$13 -> Fri - 25 | AH21: =IFERROR(VLOOKUP(AG16,Schedule!$N$64:$P$74,2,FALSE),"") -> 04:00:00 | AI21: =IFERROR(VLOOKUP(AG16,Schedule!$N$64:$P$74,3,FALSE),"") -> 08:00:00 | AJ21: =Schedule!$L$13 -> Fri - 25 | AK21: =IFERROR(VLOOKUP(AJ16,Schedule!$N$64:$P$74,2,FALSE),"") -> 08:00:00 | AL21: =IFERROR(VLOOKUP(AJ16,Schedule!$N$64:$P$74,3,FALSE),"") -> 14:00:00 | AM21: =Schedule!$L$13 -> Fri - 25 | AN21: =IFERROR(VLOOKUP(AM16,Schedule!$N$64:$P$74,2,FALSE),"") -> 08:00:00 | AO21: =IFERROR(VLOOKUP(AM16,Schedule!$N$64:$P$74,3,FALSE),"") -> 14:00:00 | AP21: =Schedule!$L$13 -> Fri - 25 | AQ21: =IFERROR(VLOOKUP(AP16,Schedule!$N$64:$P$74,2,FALSE),"") -> 08:00:00 | AR21: =IFERROR(VLOOKUP(AP16,Schedule!$N$64:$P$74,3,FALSE),"") -> 14:00:00
J22: 0.08333333333 | K22: 2 a.m. | L22: =Schedule!$N$13 -> Sat - 26 | M22: =IFERROR(VLOOKUP($L$16,Schedule!$Q$64:$S$74,2,FALSE),"") -> 0 | N22: =IFERROR(VLOOKUP($L$16,Schedule!$Q$64:$S$74,3,FALSE),"") -> 0 | O22: =Schedule!$N$13 -> Sat - 26 | P22: =IFERROR(VLOOKUP(O16,Schedule!$Q$64:$S$74,2,FALSE),"") -> 0 | Q22: =IFERROR(VLOOKUP(O16,Schedule!$Q$64:$S$74,3,FALSE),"") -> 0 | R22: =Schedule!$N$13 -> Sat - 26 | S22: =IFERROR(VLOOKUP(R16,Schedule!$Q$64:$S$74,2,FALSE),"") -> 02:00:00 | T22: =IFERROR(VLOOKUP(R16,Schedule!$Q$64:$S$74,3,FALSE),"") -> 07:30:00 | U22: =Schedule!$N$13 -> Sat - 26 | V22: =IFERROR(VLOOKUP(U16,Schedule!$Q$64:$S$74,2,FALSE),"") -> OFF | W22: =IFERROR(VLOOKUP(U16,Schedule!$Q$64:$S$74,3,FALSE),"") -> OFF | X22: =Schedule!$N$13 -> Sat - 26 | Y22: =IFERROR(VLOOKUP(X16,Schedule!$Q$64:$S$74,2,FALSE),"") -> 02:00:00 | Z22: =IFERROR(VLOOKUP(X16,Schedule!$Q$64:$S$74,3,FALSE),"") -> 08:00:00 | AA22: =Schedule!$N$13 -> Sat - 26 | AB22: =IFERROR(VLOOKUP(AA16,Schedule!$Q$64:$S$74,2,FALSE),"") -> 02:45:00 | AC22: =IFERROR(VLOOKUP(AA16,Schedule!$Q$64:$S$74,3,FALSE),"") -> 07:30:00 | AD22: =Schedule!$N$13 -> Sat - 26 | AE22: =IFERROR(VLOOKUP(AD16,Schedule!$Q$64:$S$74,2,FALSE),"") -> 04:00:00 | AF22: =IFERROR(VLOOKUP(AD16,Schedule!$Q$64:$S$74,3,FALSE),"") -> 10:00:00 | AG22: =Schedule!$N$13 -> Sat - 26 | AH22: =IFERROR(VLOOKUP(AG16,Schedule!$Q$64:$S$74,2,FALSE),"") -> 04:00:00 | AI22: =IFERROR(VLOOKUP(AG16,Schedule!$Q$64:$S$74,3,FALSE),"") -> 08:00:00 | AJ22: =Schedule!$N$13 -> Sat - 26 | AK22: =IFERROR(VLOOKUP(AJ16,Schedule!$Q$64:$S$74,2,FALSE),"") -> 08:00:00 | AL22: =IFERROR(VLOOKUP(AJ16,Schedule!$Q$64:$S$74,3,FALSE),"") -> 14:00:00 | AM22: =Schedule!$N$13 -> Sat - 26 | AN22: =IFERROR(VLOOKUP(AM16,Schedule!$Q$64:$S$74,2,FALSE),"") -> 08:00:00 | AO22: =IFERROR(VLOOKUP(AM16,Schedule!$Q$64:$S$74,3,FALSE),"") -> 14:00:00 | AP22: =Schedule!$N$13 -> Sat - 26 | AQ22: =IFERROR(VLOOKUP(AP16,Schedule!$Q$64:$S$74,2,FALSE),"") -> 08:00:00 | AR22: =IFERROR(VLOOKUP(AP16,Schedule!$Q$64:$S$74,3,FALSE),"") -> 14:00:00
J23: 0.09375 | K23: 2:15 a.m. | L23: =Schedule!$D$37 -> Mon - 28 | M23: =IFERROR(VLOOKUP($L$16,Schedule!$B$76:$D$86,2,FALSE),"") ->  | N23: =IFERROR(VLOOKUP($L$16,Schedule!$B$76:$D$86,3,FALSE),"") ->  | O23: =Schedule!$D$37 -> Mon - 28 | P23: =IFERROR(VLOOKUP(O16,Schedule!$B$76:$D$86,2,FALSE),"") -> 0 | Q23: =IFERROR(VLOOKUP(O16,Schedule!$B$76:$D$86,3,FALSE),"") -> 0 | R23: =Schedule!$D$37 -> Mon - 28 | S23: =IFERROR(VLOOKUP(R16,Schedule!$B$76:$D$86,2,FALSE),"") -> 02:00:00 | T23: =IFERROR(VLOOKUP(R16,Schedule!$B$76:$D$86,3,FALSE),"") -> 07:30:00 | U23: =Schedule!$D$37 -> Mon - 28 | V23: =IFERROR(VLOOKUP(U16,Schedule!$B$76:$D$86,2,FALSE),"") -> 06:00:00 | W23: =IFERROR(VLOOKUP(U16,Schedule!$B$76:$D$86,3,FALSE),"") -> 14:00:00 | X23: =Schedule!$D$37 -> Mon - 28 | Y23: =IFERROR(VLOOKUP(X16,Schedule!$B$76:$D$86,2,FALSE),"") -> 02:00:00 | Z23: =IFERROR(VLOOKUP(X16,Schedule!$B$76:$D$86,3,FALSE),"") -> 08:00:00 | AA23: =Schedule!$D$37 -> Mon - 28 | AB23: =IFERROR(VLOOKUP(AA16,Schedule!$B$76:$D$86,2,FALSE),"") -> 02:45:00 | AC23: =IFERROR(VLOOKUP(AA16,Schedule!$B$76:$D$86,3,FALSE),"") -> 07:30:00 | AD23: =Schedule!$D$37 -> Mon - 28 | AE23: =IFERROR(VLOOKUP(AD16,Schedule!$B$76:$D$86,2,FALSE),"") -> 04:00:00 | AF23: =IFERROR(VLOOKUP(AD16,Schedule!$B$76:$D$86,3,FALSE),"") -> 10:00:00 | AG23: =Schedule!$D$37 -> Mon - 28 | AH23: =IFERROR(VLOOKUP(AG16,Schedule!$B$76:$D$86,2,FALSE),"") -> 04:00:00 | AI23: =IFERROR(VLOOKUP(AG16,Schedule!$B$76:$D$86,3,FALSE),"") -> 08:00:00 | AJ23: =Schedule!$D$37 -> Mon - 28 | AK23: =IFERROR(VLOOKUP(AJ16,Schedule!$B$76:$D$86,2,FALSE),"") -> 08:00:00 | AL23: =IFERROR(VLOOKUP(AJ16,Schedule!$B$76:$D$86,3,FALSE),"") -> 14:00:00 | AM23: =Schedule!$D$37 -> Mon - 28 | AN23: =IFERROR(VLOOKUP(AM16,Schedule!$B$76:$D$86,2,FALSE),"") -> 08:00:00 | AO23: =IFERROR(VLOOKUP(AM16,Schedule!$B$76:$D$86,3,FALSE),"") -> 14:00:00 | AP23: =Schedule!$D$37 -> Mon - 28 | AQ23: =IFERROR(VLOOKUP(AP16,Schedule!$B$76:$D$86,2,FALSE),"") -> 08:00:00 | AR23: =IFERROR(VLOOKUP(AP16,Schedule!$B$76:$D$86,3,FALSE),"") -> 14:00:00
J24: 0.1041666667 | K24: 2:30 a.m. | L24: =Schedule!$F$37 -> Tue - 29 | M24: =IFERROR(VLOOKUP($L$16,Schedule!$E$76:$G$86,2,FALSE),"") -> 0 | N24: =IFERROR(VLOOKUP($L$16,Schedule!$E$76:$G$86,3,FALSE),"") -> 0 | O24: =Schedule!$F$37 -> Tue - 29 | P24: =IFERROR(VLOOKUP(O16,Schedule!$E$76:$G$86,2,FALSE),"") -> 0 | Q24: =IFERROR(VLOOKUP(O16,Schedule!$E$76:$G$86,3,FALSE),"") -> 0 | R24: =Schedule!$F$37 -> Tue - 29 | S24: =IFERROR(VLOOKUP(R16,Schedule!$E$76:$G$86,2,FALSE),"") -> 02:00:00 | T24: =IFERROR(VLOOKUP(R16,Schedule!$E$76:$G$86,3,FALSE),"") -> 07:30:00 | U24: =Schedule!$F$37 -> Tue - 29 | V24: =IFERROR(VLOOKUP(U16,Schedule!$E$76:$G$86,2,FALSE),"") -> 06:00:00 | W24: =IFERROR(VLOOKUP(U16,Schedule!$E$76:$G$86,3,FALSE),"") -> 14:00:00 | X24: =Schedule!$F$37 -> Tue - 29 | Y24: =IFERROR(VLOOKUP(X16,Schedule!$E$76:$G$86,2,FALSE),"") -> 02:00:00 | Z24: =IFERROR(VLOOKUP(X16,Schedule!$E$76:$G$86,3,FALSE),"") -> 08:00:00 | AA24: =Schedule!$F$37 -> Tue - 29 | AB24: =IFERROR(VLOOKUP(AA16,Schedule!$E$76:$G$86,2,FALSE),"") -> 02:45:00 | AC24: =IFERROR(VLOOKUP(AA16,Schedule!$E$76:$G$86,3,FALSE),"") -> 07:30:00 | AD24: =Schedule!$F$37 -> Tue - 29 | AE24: =IFERROR(VLOOKUP(AD16,Schedule!$E$76:$G$86,2,FALSE),"") -> 06:00:00 | AF24: =IFERROR(VLOOKUP(AD16,Schedule!$E$76:$G$86,3,FALSE),"") -> 10:00:00 | AG24: =Schedule!$F$37 -> Tue - 29 | AH24: =IFERROR(VLOOKUP(AG16,Schedule!$E$76:$G$86,2,FALSE),"") -> 04:00:00 | AI24: =IFERROR(VLOOKUP(AG16,Schedule!$E$76:$G$86,3,FALSE),"") -> 08:00:00 | AJ24: =Schedule!$F$37 -> Tue - 29 | AK24: =IFERROR(VLOOKUP(AJ16,Schedule!$E$76:$G$86,2,FALSE),"") -> 08:00:00 | AL24: =IFERROR(VLOOKUP(AJ16,Schedule!$E$76:$G$86,3,FALSE),"") -> 14:00:00 | AM24: =Schedule!$F$37 -> Tue - 29 | AN24: =IFERROR(VLOOKUP(AM16,Schedule!$E$76:$G$86,2,FALSE),"") -> 08:00:00 | AO24: =IFERROR(VLOOKUP(AM16,Schedule!$E$76:$G$86,3,FALSE),"") -> 14:00:00 | AP24: =Schedule!$F$37 -> Tue - 29 | AQ24: =IFERROR(VLOOKUP(AP16,Schedule!$E$76:$G$86,2,FALSE),"") -> 08:00:00 | AR24: =IFERROR(VLOOKUP(AP16,Schedule!$E$76:$G$86,3,FALSE),"") -> 14:00:00
J25: 0.1145833333 | K25: 2:45 a.m. | L25: =Schedule!$H$37 -> Wed - 30 | M25: =IFERROR(VLOOKUP($L$16,Schedule!$H$76:$J$86,2,FALSE),"") ->  | N25: =IFERROR(VLOOKUP($L$16,Schedule!$H$76:$J$86,3,FALSE),"") ->  | O25: =Schedule!$H$37 -> Wed - 30 | P25: =IFERROR(VLOOKUP(O16,Schedule!$H$76:$J$86,2,FALSE),"") -> 0 | Q25: =IFERROR(VLOOKUP(O16,Schedule!$H$76:$J$86,3,FALSE),"") -> 0 | R25: =Schedule!$H$37 -> Wed - 30 | S25: =IFERROR(VLOOKUP(R16,Schedule!$H$76:$J$86,2,FALSE),"") -> 02:00:00 | T25: =IFERROR(VLOOKUP(R16,Schedule!$H$76:$J$86,3,FALSE),"") -> 07:30:00 | U25: =Schedule!$H$37 -> Wed - 30 | V25: =IFERROR(VLOOKUP(U16,Schedule!$H$76:$J$86,2,FALSE),"") -> 06:00:00 | W25: =IFERROR(VLOOKUP(U16,Schedule!$H$76:$J$86,3,FALSE),"") -> 14:00:00 | X25: =Schedule!$H$37 -> Wed - 30 | Y25: =IFERROR(VLOOKUP(X16,Schedule!$H$76:$J$86,2,FALSE),"") -> 02:00:00 | Z25: =IFERROR(VLOOKUP(X16,Schedule!$H$76:$J$86,3,FALSE),"") -> 08:00:00 | AA25: =Schedule!$H$37 -> Wed - 30 | AB25: =IFERROR(VLOOKUP(AA16,Schedule!$H$76:$J$86,2,FALSE),"") -> 02:45:00 | AC25: =IFERROR(VLOOKUP(AA16,Schedule!$H$76:$J$86,3,FALSE),"") -> 07:30:00 | AD25: =Schedule!$H$37 -> Wed - 30 | AE25: =IFERROR(VLOOKUP(AD16,Schedule!$H$76:$J$86,2,FALSE),"") -> 06:00:00 | AF25: =IFERROR(VLOOKUP(AD16,Schedule!$H$76:$J$86,3,FALSE),"") -> 10:00:00 | AG25: =Schedule!$H$37 -> Wed - 30 | AH25: =IFERROR(VLOOKUP(AG16,Schedule!$H$76:$J$86,2,FALSE),"") -> 04:00:00 | AI25: =IFERROR(VLOOKUP(AG16,Schedule!$H$76:$J$86,3,FALSE),"") -> 08:00:00 | AJ25: =Schedule!$H$37 -> Wed - 30 | AK25: =IFERROR(VLOOKUP(AJ16,Schedule!$H$76:$J$86,2,FALSE),"") -> 08:00:00 | AL25: =IFERROR(VLOOKUP(AJ16,Schedule!$H$76:$J$86,3,FALSE),"") -> 14:00:00 | AM25: =Schedule!$H$37 -> Wed - 30 | AN25: =IFERROR(VLOOKUP(AM16,Schedule!$H$76:$J$86,2,FALSE),"") -> 08:00:00 | AO25: =IFERROR(VLOOKUP(AM16,Schedule!$H$76:$J$86,3,FALSE),"") -> 14:00:00 | AP25: =Schedule!$H$37 -> Wed - 30 | AQ25: =IFERROR(VLOOKUP(AP16,Schedule!$H$76:$J$86,2,FALSE),"") -> 08:00:00 | AR25: =IFERROR(VLOOKUP(AP16,Schedule!$H$76:$J$86,3,FALSE),"") -> 14:00:00
J26: 0.125 | K26: 3 a.m. | L26: =Schedule!$J$37 -> Thu - 31 | M26: =IFERROR(VLOOKUP($L$16,Schedule!$K$76:$M$86,2,FALSE),"") -> 0 | N26: =IFERROR(VLOOKUP($L$16,Schedule!$K$76:$M$86,3,FALSE),"") -> 0 | O26: =Schedule!$J$37 -> Thu - 31 | P26: =IFERROR(VLOOKUP(O16,Schedule!$K$76:$M$86,2,FALSE),"") -> 0 | Q26: =IFERROR(VLOOKUP(O16,Schedule!$K$76:$M$86,3,FALSE),"") -> 0 | R26: =Schedule!$J$37 -> Thu - 31 | S26: =IFERROR(VLOOKUP(R16,Schedule!$K$76:$M$86,2,FALSE),"") -> 02:00:00 | T26: =IFERROR(VLOOKUP(R16,Schedule!$K$76:$M$86,3,FALSE),"") -> 07:30:00 | U26: =Schedule!$J$37 -> Thu - 31 | V26: =IFERROR(VLOOKUP(U16,Schedule!$K$76:$M$86,2,FALSE),"") -> 06:00:00 | W26: =IFERROR(VLOOKUP(U16,Schedule!$K$76:$M$86,3,FALSE),"") -> 10:45:00 | X26: =Schedule!$J$37 -> Thu - 31 | Y26: =IFERROR(VLOOKUP(X16,Schedule!$K$76:$M$86,2,FALSE),"") -> 02:00:00 | Z26: =IFERROR(VLOOKUP(X16,Schedule!$K$76:$M$86,3,FALSE),"") -> 08:00:00 | AA26: =Schedule!$J$37 -> Thu - 31 | AB26: =IFERROR(VLOOKUP(AA16,Schedule!$K$76:$M$86,2,FALSE),"") -> 02:45:00 | AC26: =IFERROR(VLOOKUP(AA16,Schedule!$K$76:$M$86,3,FALSE),"") -> 07:30:00 | AD26: =Schedule!$J$37 -> Thu - 31 | AE26: =IFERROR(VLOOKUP(AD16,Schedule!$K$76:$M$86,2,FALSE),"") -> 06:00:00 | AF26: =IFERROR(VLOOKUP(AD16,Schedule!$K$76:$M$86,3,FALSE),"") -> 10:00:00 | AG26: =Schedule!$J$37 -> Thu - 31 | AH26: =IFERROR(VLOOKUP(AG16,Schedule!$K$76:$M$86,2,FALSE),"") -> 04:00:00 | AI26: =IFERROR(VLOOKUP(AG16,Schedule!$K$76:$M$86,3,FALSE),"") -> 08:00:00 | AJ26: =Schedule!$J$37 -> Thu - 31 | AK26: =IFERROR(VLOOKUP(AJ16,Schedule!$K$76:$M$86,2,FALSE),"") -> 08:00:00 | AL26: =IFERROR(VLOOKUP(AJ16,Schedule!$K$76:$M$86,3,FALSE),"") -> 14:00:00 | AM26: =Schedule!$J$37 -> Thu - 31 | AN26: =IFERROR(VLOOKUP(AM16,Schedule!$K$76:$M$86,2,FALSE),"") -> 08:00:00 | AO26: =IFERROR(VLOOKUP(AM16,Schedule!$K$76:$M$86,3,FALSE),"") -> 14:00:00 | AP26: =Schedule!$J$37 -> Thu - 31 | AQ26: =IFERROR(VLOOKUP(AP16,Schedule!$K$76:$M$86,2,FALSE),"") -> 08:00:00 | AR26: =IFERROR(VLOOKUP(AP16,Schedule!$K$76:$M$86,3,FALSE),"") -> 14:00:00
J27: 0.1354166667 | K27: 3:15 a.m. | L27: =Schedule!$L$37 -> Fri - 1 | M27: =IFERROR(VLOOKUP($L$16,Schedule!$N$76:$P$86,2,FALSE),"") ->  | N27: =IFERROR(VLOOKUP($L$16,Schedule!$N$76:$P$86,3,FALSE),"") ->  | O27: =Schedule!$L$37 -> Fri - 1 | P27: =IFERROR(VLOOKUP(O16,Schedule!$N$76:$P$86,2,FALSE),"") -> 0 | Q27: =IFERROR(VLOOKUP(O16,Schedule!$N$76:$P$86,3,FALSE),"") -> 0 | R27: =Schedule!$L$37 -> Fri - 1 | S27: =IFERROR(VLOOKUP(R16,Schedule!$N$76:$P$86,2,FALSE),"") -> 02:00:00 | T27: =IFERROR(VLOOKUP(R16,Schedule!$N$76:$P$86,3,FALSE),"") -> 07:30:00 | U27: =Schedule!$L$37 -> Fri - 1 | V27: =IFERROR(VLOOKUP(U16,Schedule!$N$76:$P$86,2,FALSE),"") -> 06:00:00 | W27: =IFERROR(VLOOKUP(U16,Schedule!$N$76:$P$86,3,FALSE),"") -> 10:45:00 | X27: =Schedule!$L$37 -> Fri - 1 | Y27: =IFERROR(VLOOKUP(X16,Schedule!$N$76:$P$86,2,FALSE),"") -> 02:00:00 | Z27: =IFERROR(VLOOKUP(X16,Schedule!$N$76:$P$86,3,FALSE),"") -> 08:00:00 | AA27: =Schedule!$L$37 -> Fri - 1 | AB27: =IFERROR(VLOOKUP(AA16,Schedule!$N$76:$P$86,2,FALSE),"") -> 02:45:00 | AC27: =IFERROR(VLOOKUP(AA16,Schedule!$N$76:$P$86,3,FALSE),"") -> 07:30:00 | AD27: =Schedule!$L$37 -> Fri - 1 | AE27: =IFERROR(VLOOKUP(AD16,Schedule!$N$76:$P$86,2,FALSE),"") -> 06:00:00 | AF27: =IFERROR(VLOOKUP(AD16,Schedule!$N$76:$P$86,3,FALSE),"") -> 10:00:00 | AG27: =Schedule!$L$37 -> Fri - 1 | AH27: =IFERROR(VLOOKUP(AG16,Schedule!$N$76:$P$86,2,FALSE),"") -> 04:00:00 | AI27: =IFERROR(VLOOKUP(AG16,Schedule!$N$76:$P$86,3,FALSE),"") -> 08:00:00 | AJ27: =Schedule!$L$37 -> Fri - 1 | AK27: =IFERROR(VLOOKUP(AJ16,Schedule!$N$76:$P$86,2,FALSE),"") -> 08:00:00 | AL27: =IFERROR(VLOOKUP(AJ16,Schedule!$N$76:$P$86,3,FALSE),"") -> 14:00:00 | AM27: =Schedule!$L$37 -> Fri - 1 | AN27: =IFERROR(VLOOKUP(AM16,Schedule!$N$76:$P$86,2,FALSE),"") -> 08:00:00 | AO27: =IFERROR(VLOOKUP(AM16,Schedule!$N$76:$P$86,3,FALSE),"") -> 14:00:00 | AP27: =Schedule!$L$37 -> Fri - 1 | AQ27: =IFERROR(VLOOKUP(AP16,Schedule!$N$76:$P$86,2,FALSE),"") -> 08:00:00 | AR27: =IFERROR(VLOOKUP(AP16,Schedule!$N$76:$P$86,3,FALSE),"") -> 14:00:00
J28: 03:30:00 | K28: 3:30 a.m. | L28: =Schedule!$N$37 -> Sat - 2 | M28: =IFERROR(VLOOKUP($L$16,Schedule!$Q$76:$S$86,2,FALSE),"") -> 0 | N28: =IFERROR(VLOOKUP($L$16,Schedule!$Q$76:$S$86,3,FALSE),"") -> 0 | O28: =Schedule!$N$37 -> Sat - 2 | P28: =IFERROR(VLOOKUP(O16,Schedule!$Q$76:$S$86,2,FALSE),"") -> 0 | Q28: =IFERROR(VLOOKUP(O16,Schedule!$Q$76:$S$86,3,FALSE),"") -> 0 | R28: =Schedule!$N$37 -> Sat - 2 | S28: =IFERROR(VLOOKUP(R16,Schedule!$Q$76:$S$86,2,FALSE),"") -> 02:00:00 | T28: =IFERROR(VLOOKUP(R16,Schedule!$Q$76:$S$86,3,FALSE),"") -> 09:00:00 | U28: =Schedule!$N$37 -> Sat - 2 | V28: =IFERROR(VLOOKUP(U16,Schedule!$Q$76:$S$86,2,FALSE),"") -> OFF | W28: =IFERROR(VLOOKUP(U16,Schedule!$Q$76:$S$86,3,FALSE),"") -> OFF | X28: =Schedule!$N$37 -> Sat - 2 | Y28: =IFERROR(VLOOKUP(X16,Schedule!$Q$76:$S$86,2,FALSE),"") -> 02:00:00 | Z28: =IFERROR(VLOOKUP(X16,Schedule!$Q$76:$S$86,3,FALSE),"") -> 08:00:00 | AA28: =Schedule!$N$37 -> Sat - 2 | AB28: =IFERROR(VLOOKUP(AA16,Schedule!$Q$76:$S$86,2,FALSE),"") -> 02:45:00 | AC28: =IFERROR(VLOOKUP(AA16,Schedule!$Q$76:$S$86,3,FALSE),"") -> 07:30:00 | AD28: =Schedule!$N$37 -> Sat - 2 | AE28: =IFERROR(VLOOKUP(AD16,Schedule!$Q$76:$S$86,2,FALSE),"") -> 04:00:00 | AF28: =IFERROR(VLOOKUP(AD16,Schedule!$Q$76:$S$86,3,FALSE),"") -> 10:00:00 | AG28: =Schedule!$N$37 -> Sat - 2 | AH28: =IFERROR(VLOOKUP(AG16,Schedule!$Q$76:$S$86,2,FALSE),"") -> 04:00:00 | AI28: =IFERROR(VLOOKUP(AG16,Schedule!$Q$76:$S$86,3,FALSE),"") -> 08:00:00 | AJ28: =Schedule!$N$37 -> Sat - 2 | AK28: =IFERROR(VLOOKUP(AJ16,Schedule!$Q$76:$S$86,2,FALSE),"") -> 08:00:00 | AL28: =IFERROR(VLOOKUP(AJ16,Schedule!$Q$76:$S$86,3,FALSE),"") -> 14:00:00 | AM28: =Schedule!$N$37 -> Sat - 2 | AN28: =IFERROR(VLOOKUP(AM16,Schedule!$Q$76:$S$86,2,FALSE),"") -> 08:00:00 | AO28: =IFERROR(VLOOKUP(AM16,Schedule!$Q$76:$S$86,3,FALSE),"") -> 14:00:00 | AP28: =Schedule!$N$37 -> Sat - 2 | AQ28: =IFERROR(VLOOKUP(AP16,Schedule!$Q$76:$S$86,2,FALSE),"") -> 08:00:00 | AR28: =IFERROR(VLOOKUP(AP16,Schedule!$Q$76:$S$86,3,FALSE),"") -> 14:00:00
J29: 0.15625 | K29: 3:45 a.m.
J30: 0.1666666667 | K30: 4 a.m.
J31: 0.1770833333 | K31: 4:15 a.m.
J32: 0.1875 | K32: 4:30 a.m.
J33: 0.1979166667 | K33: 4:45 a.m.
J34: 0.2083333333 | K34: 5 a.m.
J35: 0.21875 | K35: 5:15 a.m.
J36: 0.2291666667 | K36: 5:30 a.m.
J37: 0.2395833333 | K37: 5:45 a.m.
J38: 0.25 | K38: 6 a.m.
J39: 0.2604166667 | K39: 6:15 a.m.
J40: 0.2708333333 | K40: 6:30 a.m.
J41: 0.28125 | K41: 6:45 a.m.
J42: 0.2916666667 | K42: 7 a.m.
J43: 0.3020833333 | K43: 7:15 a.m.
J44: 0.3125 | K44: 7:30 a.m.
J45: 0.3229166667 | K45: 7:45 a.m.
J46: 0.3333333333 | K46: 8 a.m.
J47: 0.34375 | K47: 8:15 a.m.
J48: 0.3541666667 | K48: 8:30 a.m.
J49: 0.3645833333 | K49: 8:45 a.m.
J50: 0.375 | K50: 9 a.m.
J51: 0.3854166667 | K51: 9:15 a.m.
J52: 0.3958333333 | K52: 9:30 a.m.
J53: 0.40625 | K53: 9:45 a.m.
J54: 0.4166666667 | K54: 10 a.m.
J55: 0.4270833333 | K55: 10:15 a.m.
J56: 0.4375 | K56: 10:30 a.m.
J57: 0.4479166667 | K57: 10:45 a.m.
J58: 0.4583333333 | K58: 11 a.m.
J59: 0.46875 | K59: 11:15 a.m.
J60: 0.4791666667 | K60: 11:30 a.m.
J61: 0.4895833333 | K61: 11:45 a.m.
J62: 0.5 | K62: 12 p.m.
J63: 0.5104166667 | K63: 12:15 p.m.
J64: 0.5208333333 | K64: 12:30 p.m.
J65: 0.53125 | K65: 12:45 p.m.
J66: 0.5416666667 | K66: 1 p.m.
J67: 0.5520833333 | K67: 1:15 p.m.
J68: 0.5625 | K68: 1:30 p.m.
J69: 0.5729166667 | K69: 1:45 p.m.
J70: 0.5833333333 | K70: 2 p.m.
J71: 0.59375 | K71: 2:15 p.m.
J72: 0.6041666667 | K72: 2:30 p.m.
J73: 0.6145833333 | K73: 2:45 p.m.
J74: 0.625 | K74: 3 p.m.

Sheet Carriers
A1: Provider | B1: Gateway
A2: AllTel | B2: text.wireless.alltel.com
A3: AT&T | B3: txt.att.net
A4: Boost Mobile | B4: myboostmobile.com
A5: Cricket | B5: sms.mycricket.com
A6: Sprint | B6: messaging.sprintpcs.com
A7: T-Mobile | B7: tmomail.net
A8: US Cellular | B8: email.uscc.net
A9: Verizon | B9: vtext.com
A10: Virgin Mobile | B10: vmobl.com

Sheet Formulas
A1: Date and Time Formulas
J2: =prevMonthName&" "&YEAR(H10) -> June 2014
B3: Today's Date | D3: Month Names | G3: time | H3: 11 | J3: S | K3: M | L3: T | M3: W | N3: Th | O3: F | P3: Sa
B4: =TODAY() -> 2014-04-11 | D4: January | G4: week | H4: 4 | J4: =IF(MONTH(prevMonth)<>MONTH(prevMonth-WEEKDAY(prevMonth)+(WeekNo-1)*7+WeekDay),"",DAY(prevMonth-WEEKDAY(prevMonth)+(WeekNo-1)*7+WeekDay)) -> 1 | K4: 2 | L4: 3 | M4: 4 | N4: 5 | O4: 6 | P4: 7
B5: =MONTH(TODAY()) -> 4 | D5: February | G5: month | H5: 7 | J5: 8 | K5: 9 | L5: 10 | M5: 11 | N5: 12 | O5: 13 | P5: 14
B6: =INDEX(monthNames,B5) -> April | D6: March | G6: year | H6: 2014 | J6: 15 | K6: 16 | L6: 17 | M6: 18 | N6: 19 | O6: 20 | P6: 21
B7: =YEAR(TODAY()) -> 2014 | D7: April | G7: monthName | H7: =INDEX(monthNames,month) -> July | J7: 22 | K7: 23 | L7: 24 | M7: 25 | N7: 26 | O7: 27 | P7: 28
D8: May | G8: startDate | H8: =DATE(year,month,1) -> 2014-07-01 | J8: 29 | K8: 30
D9: June | G9: startDayOfWeek | H9: =WEEKDAY(startDate) -> 3
D10: July | G10: prevMonth | H10: =DATE(YEAR(startDate-1),MONTH(startDate-1),1) -> 2014-06-01
D11: August | G11: prevMonthName | H11: =INDEX(monthNames,MONTH(H10)) -> June | J11: =monthName&" "&year -> July 2014
D12: September | G12: nextMonth | H12: =DATE(YEAR(startDate+32),MONTH(startDate+32),1) -> 2014-08-01 | J12: S | K12: M | L12: T | M12: W | N12: Th | O12: F | P12: Sa
D13: October | G13: nextMonthName | H13: =INDEX(monthNames,MONTH(H12)) -> August | J13: =IF(MONTH(startDate)<>MONTH(startDate-startDayOfWeek+(WeekNo-1)*7+WeekDay),"",DAY(startDate-startDayOfWeek+(WeekNo-1)*7+WeekDay)) ->  | L13: 1 | M13: 2 | N13: 3 | O13: 4 | P13: 5
D14: November | J14: 6 | K14: 7 | L14: 8 | M14: 9 | N14: 10 | O14: 11 | P14: 12
D15: December | J15: 13 | K15: 14 | L15: 15 | M15: 16 | N15: 17 | O15: 18 | P15: 19
J16: 20 | K16: 21 | L16: 22 | M16: 23 | N16: 24 | O16: 25 | P16: 26
J17: 27 | K17: 28 | L17: 29 | M17: 30 | N17: 31
A19: WeekNo | B19: Sun | C19: Mon | D19: Tue | E19: Wed | F19: Thu | G19: Fri | H19: Sat
B20: 1 | C20: 2 | D20: 3 | E20: 4 | F20: 5 | G20: 6 | H20: 7 | J20: =NextMonthName&" "&YEAR(H12) -> August 2014
A21: 1 | B21: =startDate-startDayOfWeek+(WeekNo-1)*7+WeekDay -> 2014-06-29 | C21: 2014-06-30 | D21: 2014-07-01 | E21: 2014-07-02 | F21: 2014-07-03 | G21: 2014-07-04 | H21: 2014-07-05 | J21: S | K21: M | L21: T | M21: W | N21: Th | O21: F | P21: Sa
A22: 2 | B22: 2014-07-06 | C22: 2014-07-07 | D22: 2014-07-08 | E22: 2014-07-09 | F22: 2014-07-10 | G22: 2014-07-11 | H22: 2014-07-12 | J22: =IF(MONTH(nextMonth)<>MONTH(nextMonth-WEEKDAY(nextMonth)+(WeekNo-1)*7+WeekDay),"",DAY(nextMonth-WEEKDAY(nextMonth)+(WeekNo-1)*7+WeekDay)) ->  | O22: 1 | P22: 2
A23: 3 | B23: 2014-07-13 | C23: 2014-07-14 | D23: 2014-07-15 | E23: 2014-07-16 | F23: 2014-07-17 | G23: 2014-07-18 | H23: 2014-07-19 | J23: 3 | K23: 4 | L23: 5 | M23: 6 | N23: 7 | O23: 8 | P23: 9
A24: 4 | B24: 2014-07-20 | C24: 2014-07-21 | D24: 2014-07-22 | E24: 2014-07-23 | F24: 2014-07-24 | G24: 2014-07-25 | H24: 2014-07-26 | J24: 10 | K24: 11 | L24: 12 | M24: 13 | N24: 14 | O24: 15 | P24: 16
A25: 5 | B25: 2014-07-27 | C25: 2014-07-28 | D25: 2014-07-29 | E25: 2014-07-30 | F25: 2014-07-31 | G25: 2014-08-01 | H25: 2014-08-02 | J25: 17 | K25: 18 | L25: 19 | M25: 20 | N25: 21 | O25: 22 | P25: 23
A26: 6 | B26: 2014-08-03 | C26: 2014-08-04 | D26: 2014-08-05 | E26: 2014-08-06 | F26: 2014-08-07 | G26: 2014-08-08 | H26: 2014-08-09 | J26: 24 | K26: 25 | L26: 26 | M26: 27 | N26: 28 | O26: 29 | P26: 30
A27: 7 | B27: 2014-08-10 | C27: 2014-08-11 | D27: 2014-08-12 | E27: 2014-08-13 | F27: 2014-08-14 | G27: 2014-08-15 | H27: 2014-08-16 | J27: 31
A30: Start_Times
A31: =12 -> 12
A32: =A31+1/48 -> 12.02083333
A33: 12.04166667
A34: 12.0625
A35: 12.08333333
A36: 12.10416667
A37: 12.125
A38: =A37+1/48 -> 12.14583333
A39: 12.16666667
A40: 12.1875
A41: 12.20833333
A42: 12.22916667
A43: 12.25
A44: 12.27083333
A45: 12.29166667
A46: 12.3125
A47: 12.33333333
A48: 12.35416667
A49: 12.375
A50: =A49+1/48 -> 12.39583333
A51: 12.41666667
A52: 12.4375
A53: 12.45833333
A54: 12.47916667
A55: 12.5
A56: 12.52083333
A57: 12.54166667
A58: 12.5625
A59: 12.58333333
A60: 12.60416667
A61: 12.625
